Workbook

Sheet Sheet1
A1: HEALTH CONNECT SUPRA
A2: Benefit Illustration in respect of policies offered on individual and family floater basis
A3: Plan | B3: Super Top up Option I | C3: Deductible | D3: 500000 | E3: Sum Insured | F3: 1000000 | G3: Policy Tenure | H3: 1 year
A4: Otional Covers
A5: Reload of Sum Insured | B5: No | C5: AYUSH Treatment | D5: No | E5: World-Wide Coverage | F5: No | G5: Wellness & Assistance | H5: No
A6: 1st Adult Age | B6: 40 | C6: 2nd Adult Age | D6: 38 | E6: 1st Child Age | G6: 2nd Child Age
A7: 3rd Child Age | I7: UIN: LIBHLIP23124V032223
A9: Age of the members insured | B9: Coverage opted on individual basis covering each member of the family separately (at a single point in time) | D9: Coverage opted on individual basis covering multiple members of the family under a single policy (Sum insured is available for each member of the family) | H9: Coverage opted on family floater basis with overall Sum insured (Only one sum insured is available for the entire family)
B10: Premium (Rs.) | C10: Sum insured (Rs.) | D10: Premium (Rs.) | E10: Discount, (if any) | F10: Premium after discount (Rs.) | G10: Sum insured (Rs.) | H10: Premium or consolidated premium for all members of family (Rs.) | I10: Floater discount, if any | J10: Premium after discount (Rs.) | K10: Sum insured
A11: =B6 -> 40 | B11: =Master!BF5 -> 1287 | C11: =IF(B6="",0,$F$3) -> 1000000 | D11: =Master!BM5 -> 1287 | E11: =IF(AND(COUNT(Master!AT5:AT9)>=2,H3="1 year"),"Family Discount: 10%",IF(AND(COUNT(Master!AT5:AT9)>=2,H3="2 years"),"Family Discount: 10% & Long Term Discount: 7.5%",IF(AND(COUNT(Master!AT5:AT9)>=2,H3="3 years"),"Family Discount: 10% & Long Term Discount: 10%",IF(AND(COUNT(Master!AT5:AT9)=1,H3="1 year"),"0%",IF(AND(COUNT(Master!AT5:AT9)=1,H3="2 years"),"Long Term Discount: 7.5%","Long Term Discount: 10%"))))) -> Family Discount: 10% | F11: =Master!BP5 -> 1158.3 | G11: =IF(B6="",0,$F$3) -> 1000000 | H11: =IF(Master!BE13="Available floater combinations - 1A1C, 1A2C, 1A3C, 2A, 2A1C, 2A2C or 2A3C","Available floater combinations - 1A1C, 1A2C, 1A3C, 2A, 2A1C, 2A2C or 2A3C","Base Plan Rs."&" "&ROUND(Master!BS5,0)&" "&"Optional Cover Rs."&Master!BA12) -> Base Plan Rs. 2574 Optional Cover Rs.0 | I11: =IF(Master!BE13="Available floater combinations - 1A1C, 1A2C, 1A3C, 2A, 2A1C, 2A2C or 2A3C",0%,Master!BH20) -> 0.2 | J11: =IF(Master!BE13="Available floater combinations - 1A1C, 1A2C, 1A3C, 2A, 2A1C, 2A2C or 2A3C",0,Master!BU5) -> 2059 | K11: =IF(Master!BE13="Available floater combinations - 1A1C, 1A2C, 1A3C, 2A, 2A1C, 2A2C or 2A3C",0,F3) -> 1000000
A12: =D6 -> 38 | B12: =Master!BF6 -> 1287 | C12: =IF(D6="",0,$F$3) -> 1000000 | D12: =Master!BM6 -> 1287 | F12: =Master!BP6 -> 1158.3 | G12: =IF(D6="",0,$F$3) -> 1000000
A13: =F6 -> 0 | B13: =Master!BF7 -> 0 | C13: =IF(F6="",0,$F$3) -> 0 | D13: =Master!BF7 -> 0 | F13: =Master!BP7 -> 0 | G13: =IF(F6="",0,$F$3) -> 0
A14: =H6 -> 0 | B14: =Master!BF8 -> 0 | C14: =IF(H6="",0,$F$3) -> 0 | D14: =Master!BF8 -> 0 | F14: =Master!BP8 -> 0 | G14: =IF(H6="",0,$F$3) -> 0
A15: =B7 -> 0 | B15: =Master!BF9 -> 0 | C15: =IF(B7="",0,$F$3) -> 0 | D15: =Master!BF9 -> 0 | F15: =Master!BP9 -> 0 | G15: =IF(B7="",0,$F$3) -> 0
A16: =Master!BR10 -> Total Premium for all members of the family is, Rs. 2574 (excluding GST & Stamp Duty) when each member is covered separately. | D16: =Master!BS10 -> Total Premium for all members of the family is, Rs. 2317 (excluding GST & Stamp Duty) when they are covered under a single policy | H16: =Master!BT10 -> Total Premium when policy is opted on floater basis is, Rs. 2059 (excluding GST & Stamp Duty)
A17: =IF(AND(H3="3 years",H5="No"),"*Total premium shown above includes long term discount",IF(AND(H3="2 years",H5="No"),"*Total premium shown above includes long term discount",IF(AND(H3="3 years",H5="Yes"),"*Total premium shown above includes long term discount & Wellness & Assistance services premium",IF(AND(H3="2 years",H5="Yes"),"*Total premium shown above includes long term discount & Wellness & Assistance services premium",IF(AND(H3="1 year",H5="Yes"),"*Total premium shown above includes Wellness & Assistance services premium",""))))) ->  | D17: =IF(H5="Yes","*Total premium shown above includes Wellness & Assistance services premium","") ->  | H17: =IF(Master!BE13="Available floater combinations - 1A1C, 1A2C, 1A3C, 2A, 2A1C, 2A2C or 2A3C","",IF(Sheet1!H3="1 year","*Floater discount applies only to Base Plan premium","*Floater discount applies only to Base Plan premium & consolidated premium shown above includes long term discount")) -> *Floater discount applies only to Base Plan premium
A18: =Master!BR11 -> Sum insured available for each individual is Rs. 1000000 with deductible of Rs. 500000 under Health Connect Supra policy | D18: =Master!BS11 -> Sum insured available for each family member is Rs. 1000000 with deductible of Rs. 500000 under Health Connect Supra policy | H18: =Master!BT11 -> Sum insured of Rs. 1000000 with deductible of Rs. 500000 is available for the entire family.

Sheet Drop down lists (hidden)
A1: Top up | B1: Super Top up | C1: Deductible_Top up | G1: Deductible Super Top up | J1: Sum Insured Top up I | K1: Sum Insured Top up II | L1: Sum Insured Top up III | N1: Sum Insured Super Top up I | O1: Sum Insured Super Top up II | Q1: Age | T1: Plan Option | U1: Policy Tenure
A2: I | B2: I | C2: 50000 | D2: 200000 | E2: 500000 | G2: 200000 | H2: 1000000 | J2: 50000 | K2: 300000 | L2: 1000000 | N2: 300000 | O2: 1000000 | Q2: 3-11 Months | T2: Top up Option I | U2: 1 year
A3: II | B3: II | D3: 300000 | E3: 750000 | G3: 300000 | H3: 1500000 | J3: 100000 | K3: 500000 | L3: 1500000 | N3: 500000 | O3: 1500000 | Q3: 1 | T3: Top up Option II | U3: 2 years
A4: III | D4: 400000 | E4: 1000000 | G4: 400000 | H4: 2000000 | J4: 150000 | K4: 700000 | L4: 2000000 | N4: 700000 | O4: 2000000 | Q4: 2 | T4: Top up Option III | U4: 3 years
D5: 500000 | G5: 500000 | H5: 3000000 | J5: 200000 | N5: 1000000 | O5: 3000000 | Q5: 3 | T5: Super Top up Option I
G6: 750000 | H6: 4000000 | N6: 1500000 | O6: 5000000 | Q6: 4 | T6: Super Top up Option II
A7: Yes | D7: 50000 | E7: 50000 | G7: 1000000 | N7: 2000000 | O7: 10000000 | Q7: 5
A8: No | C8: op 1 | E8: 100000 | Q8: 6
E9: 150000 | G9: 200000 | H9: 300000 | J9: 1000000 | K9: 1000000 | Q9: 7
E10: 200000 | H10: 500000 | K10: 1500000 | N10: NA | O10: 0 | Q10: 8
H11: 700000 | K11: 2000000 | O11: 1 | Q11: 9
D12: 200000 | E12: 300000 | H12: 1000000 | K12: 3000000 | N12: Yes | O12: 2 | Q12: 10
E13: 500000 | H13: 1500000 | K13: 5000000 | N13: No | O13: 3 | Q13: 11
E14: 700000 | H14: 2000000 | K14: 10000000 | O14: 4 | Q14: 12
G15: 300000 | H15: 300000 | J15: 1500000 | K15: 1000000 | O15: 5 | Q15: 13
H16: 500000 | K16: 1500000 | Q16: 14
D17: 300000 | E17: 300000 | H17: 700000 | K17: 2000000 | Q17: 15
C18: Op 2 | E18: 500000 | H18: 1000000 | K18: 3000000 | L18: Op 2 | Q18: 16
E19: 700000 | H19: 1500000 | K19: 5000000 | Q19: 17
H20: 2000000 | K20: 10000000 | Q20: 18
G21: 400000 | H21: 300000 | J21: 2000000 | K21: 1000000 | Q21: 19
D22: 400000 | E22: 300000 | H22: 500000 | K22: 1500000 | Q22: 20
E23: 500000 | H23: 700000 | I23: Op 1 | K23: 2000000 | Q23: 21
E24: 700000 | H24: 1000000 | K24: 3000000 | Q24: 22
H25: 1500000 | K25: 5000000 | Q25: 23
H26: 2000000 | K26: 10000000 | Q26: 24
D27: 500000 | E27: 300000 | G27: 500000 | H27: 300000 | J27: 3000000 | K27: 1000000 | Q27: 25
E28: 500000 | H28: 500000 | K28: 1500000 | Q28: 26
E29: 700000 | H29: 700000 | K29: 2000000 | Q29: 27
H30: 1000000 | K30: 3000000 | Q30: 28
H31: 1500000 | K31: 5000000 | Q31: 29
D32: 500000 | E32: 1000000 | H32: 2000000 | K32: 10000000 | Q32: 30
E33: 1500000 | G33: 750000 | H33: 300000 | J33: 4000000 | K33: 1000000 | Q33: 31
E34: 2000000 | H34: 500000 | K34: 1500000 | Q34: 32
H35: 700000 | K35: 2000000 | Q35: 33
C36: op 3 | D36: 750000 | E36: 1000000 | H36: 1000000 | K36: 3000000 | Q36: 34
E37: 1500000 | H37: 1500000 | K37: 5000000 | Q37: 35
E38: 2000000 | H38: 2000000 | K38: 10000000 | Q38: 36
G39: 1000000 | H39: 300000 | Q39: 37
D40: 1000000 | E40: 1000000 | H40: 500000 | Q40: 38
E41: 1500000 | H41: 700000 | Q41: 39
E42: 2000000 | H42: 1000000 | Q42: 40
H43: 1500000 | Q43: 41
H44: 2000000 | Q44: 42
Q45: 43
Q46: 44
Q47: 45
Q48: 46
Q49: 47
Q50: 48
Q51: 49
Q52: 50
Q53: 51
Q54: 52
Q55: 53
Q56: 54
Q57: 55
Q58: 56
Q59: 57
Q60: 58
Q61: 59
Q62: 60
Q63: 61
Q64: 62
Q65: 63
Q66: 64
Q67: 65

Sheet Master (hidden)
A2: Top up Option I | AO2: =BA4 -> Base Premium | AS2: Working
A3: Deductible | B3: 50000 | AO3: 1 year | AP3: 2 years | AQ3: 3 years
A4: Age Band/SI | B4: 50000 | C4: 100000 | D4: 150000 | E4: 200000 | AO4: =IFERROR(INDEX($AS$39:$BF$134,MATCH(CONCATENATE(AW5&AV5&AX5),$AS$39:$AS$134,0),MATCH(AY5,$AS$39:$BF$39,0)),0) -> 1287 | AP4: =AO4*$AP$11 -> 2574 | AQ4: =AO4*$AQ$11 -> 3861 | AS4: Sr. No. | AT4: No.of Insured | AU4: DOB | AV4: Age band | AW4: Plan | AX4: Deductible | AY4: Sum Insured | AZ4: SI band | BA4: Base Premium | BB4: Family Floater discount | BC4: AYUSH | BD4: World Wide Cover | BE4: Reload | BF4: Premium | BG4: Wellness | BJ4: Multi Policy Year Discount | BM4: Separate prm for each ind with longterm disc | BN4: Family Discount | BO4: Long Term Discount | BP4: Ind prm post discount | BR4: Floater premium | BS4: Floater premium with long term discount | BT4: Floater Discount | BU4: Final Floater Premium
A5: 91 days - 40 years | B5: 745.875 | C5: 1022.125 | D5: 1381.25 | E5: 1740.375 | AO5: =IFERROR(INDEX($AS$39:$BF$134,MATCH(CONCATENATE(AW6&AV6&AX6),$AS$39:$AS$134,0),MATCH(AY6,$AS$39:$BF$39,0)),0) -> 1287 | AP5: =AO5*$AP$11 -> 2574 | AQ5: =AO5*$AQ$11 -> 3861 | AT5: =IF(AU5="","",1) -> 1 | AU5: =IF(Sheet1!B6="","",Sheet1!A11) -> 40 | AV5: =IFERROR(LOOKUP(AU5,Master!$AS$16:$AU$20),0) -> 91 days - 40 years | AW5: =IF(AU5="","",Sheet1!$B$3) -> Super Top up Option I | AX5: =IF(AU5="","",Sheet1!$D$3) -> 500000 | AY5: =IF(AU5="","",Sheet1!$F$3) -> 1000000 | AZ5: =LOOKUP((AY5+AX5),$AS$22:$AU$24) -> >8 & <= 15Lacs | BA5: =IFERROR(IF(Sheet1!$H$3=Master!$AO$3,Master!$AO4,(IF(Sheet1!$H$3=Master!$AP$3,Master!$AP4,(IF(Sheet1!$H$3=Master!$AQ$3,Master!$AQ4,0))))),0) -> 1287 | BC5: =IF(Sheet1!$D$5="Yes",$AX$24*BA5,0) -> 0 | BD5: =IF(Sheet1!$F$5="Yes",IFERROR(IF(Sheet1!$H$3=Master!$BN$14,Master!$BN15,(IF(Sheet1!$H$3=Master!$BO$14,Master!$BO15,(IF(Sheet1!$H$3=Master!$BP$14,Master!$BP15,0))))),0),0) -> 0 | BE5: =IFERROR(IF(Sheet1!$B$5="Yes",Master!AY27,0),0) -> 0 | BF5: =SUM(BA5:BE5) -> 1287 | BG5: =IF(Sheet1!$H$5="Yes",IF(Sheet1!$H$3=$AO$14,AO15,IF(Sheet1!$H$3=$AP$14,AP15,IF(Sheet1!$H$3=$AQ$14,AQ15,0))),0) -> 0 | BK5: 2 years | BL5: 3 years | BM5: =BF5*(100%-$BO$5) -> 1287 | BN5: =IF(COUNT(AT5:AT9)>=2,10%,0%) -> 0.1 | BO5: =IF(Sheet1!H3="3 years",10%,IF(Sheet1!H3="2 years",7.5%,0%)) -> 0 | BP5: =BF5*(100%-$BN$5-$BO$5) -> 1158.3 | BQ5: Base Premium | BR5: =BA11 -> 2574 | BS5: =(BR5*(100%-$BO$5)) -> 2574 | BT5: =BS5*(100%-BH20) -> 2059.2 | BU5: =IF(BE13="Available floater combinations - 1A1C, 1A2C, 1A3C, 2A, 2A1C, 2A2C or 2A3C",0,ROUND(SUM(BT5:BT7),0)) -> 2059
A6: 41 years - 50 years | B6: 1314.495 | C6: 1801.345 | D6: 2434.25 | E6: 3067.155 | AO6: =IFERROR(INDEX($AS$39:$BF$134,MATCH(CONCATENATE(AW7&AV7&AX7),$AS$39:$AS$134,0),MATCH(AY7,$AS$39:$BF$39,0)),0) -> 0 | AP6: =AO6*$AP$11 -> 0 | AQ6: =AO6*$AQ$11 -> 0 | AT6: =IF(AU6="","",1) -> 1 | AU6: =IF(Sheet1!D6="","",Sheet1!A12) -> 38 | AV6: =IFERROR(LOOKUP(AU6,Master!$AS$16:$AU$20),0) -> 91 days - 40 years | AW6: =IF(AU6="","",Sheet1!$B$3) -> Super Top up Option I | AX6: =IF(AU6="","",Sheet1!$D$3) -> 500000 | AY6: =IF(AU6="","",Sheet1!$F$3) -> 1000000 | AZ6: =LOOKUP((AY6+AX6),$AS$22:$AU$24) -> >8 & <= 15Lacs | BA6: =IFERROR(IF(Sheet1!$H$3=Master!$AO$3,Master!$AO5,(IF(Sheet1!$H$3=Master!$AP$3,Master!$AP5,(IF(Sheet1!$H$3=Master!$AQ$3,Master!$AQ5,0))))),0) -> 1287 | BC6: =IF(Sheet1!$D$5="Yes",$AX$24*BA6,0) -> 0 | BD6: =IF(Sheet1!$F$5="Yes",IFERROR(IF(Sheet1!$H$3=Master!$BN$14,Master!$BN16,(IF(Sheet1!$H$3=Master!$BO$14,Master!$BO16,(IF(Sheet1!$H$3=Master!$BP$14,Master!$BP16,0))))),0),0) -> 0 | BE6: =IFERROR(IF(Sheet1!$B$5="Yes",Master!AY28,0),0) -> 0 | BF6: =SUM(BA6:BE6) -> 1287 | BG6: =IF(Sheet1!$H$5="Yes",IF(Sheet1!$H$3=$AO$14,AO16,IF(Sheet1!$H$3=$AP$14,AP16,IF(Sheet1!$H$3=$AQ$14,AQ16,0))),0) -> 0 | BJ6: Disc amount | BK6: =$BF$10*7.5% -> 193.05 | BL6: =$BF$10*10% -> 257.4 | BM6: =BF6*(100%-$BO$5) -> 1287 | BP6: =BF6*(100%-$BN$5-$BO$5) -> 1158.3 | BQ6: Optional Cover | BR6: =SUM(BC11:BE11) -> 0 | BS6: =(BR6*(100%-$BO$5)) -> 0 | BT6: =BS6 -> 0
A7: 51 years - 60 years | B7: 2316.6 | C7: 3174.6 | D7: 4290 | E7: 5405.4 | AO7: =IFERROR(INDEX($AS$39:$BF$134,MATCH(CONCATENATE(AW8&AV8&AX8),$AS$39:$AS$134,0),MATCH(AY8,$AS$39:$BF$39,0)),0) -> 0 | AP7: =AO7*$AP$11 -> 0 | AQ7: =AO7*$AQ$11 -> 0 | AT7: =IF(AU7="","",1) ->  | AU7: =IF(Sheet1!F6="","",IF(Sheet1!A13="3-11 Months",0.25,Sheet1!A13)) ->  | AV7: =IFERROR(LOOKUP(AU7,Master!$AS$16:$AU$20),0) -> 0 | AW7: =IF(AU7="","",Sheet1!$B$3) ->  | AX7: =IF(AU7="","",Sheet1!$D$3) ->  | AY7: =IF(AU7="","",Sheet1!$F$3) ->  | BA7: =IFERROR(IF(Sheet1!$H$3=Master!$AO$3,Master!$AO6,(IF(Sheet1!$H$3=Master!$AP$3,Master!$AP6,(IF(Sheet1!$H$3=Master!$AQ$3,Master!$AQ6,0))))),0) -> 0 | BC7: =IF(Sheet1!$D$5="Yes",$AX$24*BA7,0) -> 0 | BD7: =IF(Sheet1!$F$5="Yes",IFERROR(IF(Sheet1!$H$3=Master!$BN$14,Master!$BN17,(IF(Sheet1!$H$3=Master!$BO$14,Master!$BO17,(IF(Sheet1!$H$3=Master!$BP$14,Master!$BP17,0))))),0),0) -> 0 | BE7: =IFERROR(IF(Sheet1!$B$5="Yes",Master!AY29,0),0) -> 0 | BF7: 0 | BG7: =IF(Sheet1!$H$5="Yes",IF(Sheet1!$H$3=$AO$14,AO17,IF(Sheet1!$H$3=$AP$14,AP17,IF(Sheet1!$H$3=$AQ$14,AQ17,0))),0) -> 0 | BM7: 0 | BP7: 0 | BQ7: Wellness | BR7: =BG11 -> 0 | BS7: =BR7 -> 0 | BT7: =BS7 -> 0
A8: 61 years - 65 years | B8: 4668.3 | C8: 6397.3 | D8: 8645 | E8: 10892.7 | AO8: =IFERROR(INDEX($AS$39:$BF$134,MATCH(CONCATENATE(AW9&AV9&AX9),$AS$39:$AS$134,0),MATCH(AY9,$AS$39:$BF$39,0)),0) -> 0 | AP8: =AO8*$AP$11 -> 0 | AQ8: =AO8*$AQ$11 -> 0 | AT8: =IF(AU8="","",1) ->  | AU8: =IF(Sheet1!H6="","",IF(Sheet1!A14="3-11 Months",0.25,Sheet1!A14)) ->  | AV8: =IFERROR(LOOKUP(AU8,Master!$AS$16:$AU$20),0) -> 0 | AW8: =IF(AU8="","",Sheet1!$B$3) ->  | AX8: =IF(AU8="","",Sheet1!$D$3) ->  | AY8: =IF(AU8="","",Sheet1!$F$3) ->  | BA8: =IFERROR(IF(Sheet1!$H$3=Master!$AO$3,Master!$AO7,(IF(Sheet1!$H$3=Master!$AP$3,Master!$AP7,(IF(Sheet1!$H$3=Master!$AQ$3,Master!$AQ7,0))))),0) -> 0 | BC8: =IF(Sheet1!$D$5="Yes",$AX$24*BA8,0) -> 0 | BD8: =IF(Sheet1!$F$5="Yes",IFERROR(IF(Sheet1!$H$3=Master!$BN$14,Master!$BN18,(IF(Sheet1!$H$3=Master!$BO$14,Master!$BO18,(IF(Sheet1!$H$3=Master!$BP$14,Master!$BP18,0))))),0),0) -> 0 | BE8: =IFERROR(IF(Sheet1!$B$5="Yes",Master!AY30,0),0) -> 0 | BF8: 0 | BG8: =IF(Sheet1!$H$5="Yes",IF(Sheet1!$H$3=$AO$14,AO18,IF(Sheet1!$H$3=$AP$14,AP18,IF(Sheet1!$H$3=$AQ$14,AQ18,0))),0) -> 0 | BM8: 0 | BP8: 0 | BS8: =BS6+BS7 -> 0
A9: Above 65 years | B9: 8143.2 | C9: 11159.2 | D9: 15080 | E9: 19000.8 | AT9: =IF(AU9="","",1) ->  | AU9: =IF(Sheet1!B7="","",IF(Sheet1!A15="3-11 Months",0.25,Sheet1!A15)) ->  | AV9: =IFERROR(LOOKUP(AU9,Master!$AS$16:$AU$20),0) -> 0 | AW9: =IF(AU9="","",Sheet1!$B$3) ->  | AX9: =IF(AU9="","",Sheet1!$D$3) ->  | AY9: =IF(AU9="","",Sheet1!$F$3) ->  | BA9: =IFERROR(IF(Sheet1!$H$3=Master!$AO$3,Master!$AO8,(IF(Sheet1!$H$3=Master!$AP$3,Master!$AP8,(IF(Sheet1!$H$3=Master!$AQ$3,Master!$AQ8,0))))),0) -> 0 | BC9: =IF(Sheet1!$D$5="Yes",$AX$24*BA9,0) -> 0 | BD9: =IF(Sheet1!$F$5="Yes",IFERROR(IF(Sheet1!$H$3=Master!$BN$14,Master!$BN19,(IF(Sheet1!$H$3=Master!$BO$14,Master!$BO19,(IF(Sheet1!$H$3=Master!$BP$14,Master!$BP19,0))))),0),0) -> 0 | BE9: =IFERROR(IF(Sheet1!$B$5="Yes",Master!AY31,0),0) -> 0 | BF9: 0 | BG9: =IF(Sheet1!$H$5="Yes",IF(Sheet1!$H$3=$AO$14,AO19,IF(Sheet1!$H$3=$AP$14,AP19,IF(Sheet1!$H$3=$AQ$14,AQ19,0))),0) -> 0 | BM9: 0 | BP9: 0
AY10: Total (Individual) | BA10: =SUM(BA5:BA9) -> 2574 | BC10: =IF(Sheet1!$D$5="Yes",SUM(BC5:BC9),0) -> 0 | BD10: =IF(Sheet1!$F$5="Yes",SUM(BD5:BD9),0) -> 0 | BE10: =SUM(BE5:BE9) -> 0 | BF10: =SUM(BA10:BE10) -> 2574 | BG10: =IF(Sheet1!$H$5="Yes",SUM(BG5:BG9),0) -> 0 | BM10: =ROUND(SUM(BM5:BM9)+BG10,0) -> 2574 | BP10: =SUM(BP5:BP9) -> 2316.6 | BR10: ="Total Premium for all members of the family is, Rs."&" "&BM10&" "&"(excluding GST & Stamp Duty) when each member is covered separately." -> Total Premium for all members of the family is, Rs. 2574 (excluding GST & Stamp Duty) when each member is covered separately. | BS10: ="Total Premium for all members of the family is, Rs."&" "&BP11&" "&"(excluding GST & Stamp Duty) when they are covered under a single policy" -> Total Premium for all members of the family is, Rs. 2317 (excluding GST & Stamp Duty) when they are covered under a single policy | BT10: ="Total Premium when policy is opted on floater basis is, Rs."&" "&BU5&" "&"(excluding GST & Stamp Duty)" -> Total Premium when policy is opted on floater basis is, Rs. 2059 (excluding GST & Stamp Duty)
AO11: 1 | AP11: 2 | AQ11: 3 | AY11: Total (Family floater) | BA11: =SUM(BA5:BA9) -> 2574 | BB11: =-IF(COUNT(AT5:AT6)>=1,Master!BH21,0) -> -514.8 | BC11: =IF(Sheet1!$D$5="Yes",$BA$11*$AX$24,0) -> 0 | BD11: =IF(Sheet1!$F$5="Yes",Master!BN24,0) -> 0 | BE11: =IF(Sheet1!$B$5="Yes",Master!$AX$22,0) -> 0 | BF11: =SUM(BA11:BE11) -> 2059.2 | BG11: =IF(AND(Sheet1!$H$5="Yes",Sheet1!H3="1 year"),Master!AO15,IF(AND(Sheet1!$H$5="Yes",Sheet1!$H$3="2 years"),Master!AP15,IF(AND(Sheet1!$H$5="Yes",Sheet1!$H$3="3 years"),Master!AQ15,0)))*COUNT(Master!AT5:AT9) -> 0 | BO11: with wellness | BP11: =ROUND(BP10+BG10,0) -> 2317 | BR11: ="Sum insured available for each individual is Rs."&" "&Sheet1!F3&" "&"with deductible of Rs."&" "&Sheet1!D3&" "&"under Health Connect Supra policy" -> Sum insured available for each individual is Rs. 1000000 with deductible of Rs. 500000 under Health Connect Supra policy | BS11: ="Sum insured available for each family member is Rs."&" "&Sheet1!F3&" "&"with deductible of Rs."&" "&Sheet1!D3&" "&"under Health Connect Supra policy" -> Sum insured available for each family member is Rs. 1000000 with deductible of Rs. 500000 under Health Connect Supra policy | BT11: =IF(BE13="Available floater combinations - 1A1C, 1A2C, 1A3C, 2A, 2A1C, 2A2C or 2A3C","Sum insured of Rs."&" "&0&" "&"with deductible of Rs."&" "&0&" "&"is available for the entire family.","Sum insured of Rs."&" "&Sheet1!F3&" "&"with deductible of Rs."&" "&Sheet1!D3&" "&"is available for the entire family.") -> Sum insured of Rs. 1000000 with deductible of Rs. 500000 is available for the entire family.
BA12: =ROUND(BC11+BD11+BE11+BG11,0) -> 0 | BN12: BN | BO12: BO | BP12: BP
AO13: Wellness | AW13: Reload Calc (Family Floater) | AX13: Loading | BB13: Family Floater Disc Calc | BD13: Floter Type | BE13: =IF(AND(SUM($AT$5:$AT$6)=1,SUM($AT$7:$AT$9)=1),"1A1C",IF(AND(SUM($AT$5:$AT$6)=1,SUM($AT$7:$AT$9)=2),"1A2C",IF(AND(SUM($AT$5:$AT$6)=1,SUM($AT$7:$AT$9)=3),"1A3C",IF(AND(SUM($AT$5:$AT$6)=2,SUM($AT$7:$AT$9)=0),"2A",IF(AND(SUM($AT$5:$AT$6)=2,SUM($AT$7:$AT$9)=1),"2A1C",IF(AND(SUM($AT$5:$AT$6)=2,SUM($AT$7:$AT$9)=2),"2A2C",IF(AND(SUM($AT$5:$AT$6)=2,SUM($AT$7:$AT$9)=3),"2A3C","Available floater combinations - 1A1C, 1A2C, 1A3C, 2A, 2A1C, 2A2C or 2A3C"))))))) -> 2A | BG13: Family Floater Premium Calc | BL13: World Wide Cover | BN13: AO | BO13: AP | BP13: AQ
A14: Top Up | C14: Option II | AO14: 1 year | AP14: 2 years | AQ14: 3 years | AX14: Deductible + Sum Insured | BB14: Per child | BC14: 0.15 | BG14: Floater disc | BH14: Adult | BJ14: Children | BL14: Sr. No. | BM14: Insured Name | BN14: 1 year | BO14: 2 years | BP14: 3 years
A15: Top up Option II | AN15: =AT5 -> 1 | AO15: =IF(AN15=1,400,0) -> 400 | AP15: =AO15*$AP$21 -> 800 | AQ15: =AO15*$AQ$21 -> 1200 | AS15: Age band | AW15: Age Bands/Sum Insured | AX15: Up to 8 Lacs | AY15: >8 & <= 15Lacs | AZ15: >15 Lacs | BB15: For addition of 1 adult, the discount will be: | BG15: Highest Age | BH15: =MAX($AU$5:$AU$9) -> 40 | BL15: =AS5 -> 0 | BM15: =AT5 -> 1 | BN15: =IFERROR(INDEX($BH$39:$BU$94,MATCH(CONCATENATE(AW5&AV5&AX5),$BH$39:$BH$94,0),MATCH(AY5,$BH$39:$BU$39,0)),0) -> 985 | BO15: =BN15*2 -> 1970 | BP15: =BN15*3 -> 2955
A16: Deductible | B16: 200000 | E16: 300000 | H16: 400000 | K16: 500000 | AN16: =AT6 -> 1 | AO16: =IF(AN16=1,400,0) -> 400 | AP16: =AO16*$AP$21 -> 800 | AQ16: =AO16*$AQ$21 -> 1200 | AS16: =91/365 -> 0.2493150685 | AT16: 40 | AU16: 91 days - 40 years | AW16: 91 days - 40 years | AX16: 0.1 | AY16: 0.05 | AZ16: 0.02 | BC16: Deductible + Sum Insured | BG16: D + SI | BH16: =AX5+AY5 -> 1500000 | BL16: =AS6 -> 0 | BM16: 1 | BN16: =IFERROR(INDEX($BH$39:$BU$94,MATCH(CONCATENATE(AW6&AV6&AX6),$BH$39:$BH$94,0),MATCH(AY6,$BH$39:$BU$39,0)),0) -> 985 | BO16: =BN16*2 -> 1970 | BP16: =BN16*3 -> 2955
A17: Age Band/SI | B17: 300000 | C17: 500000 | D17: 700000 | E17: 300000 | F17: 500000 | G17: 700000 | H17: 300000 | I17: 500000 | J17: 700000 | K17: 300000 | L17: 500000 | M17: 700000 | AO17: =IF(AN17=1,400,0) -> 0 | AP17: 0 | AQ17: 0 | AS17: =AT16+1 -> 41 | AT17: 50 | AU17: 41 years - 50 years | AW17: 41 years - 50 years | AX17: 0.15 | AY17: 0.1 | AZ17: 0.05 | BB17: Age Bands/Sum Insured | BC17: Up to 8 Lacs | BD17: >8 & <= 15Lacs | BE17: >15 Lacs | BG17: Age band of Highest | BH17: =LOOKUP(BH15,$AS$16:$AU$20) -> 91 days - 40 years | BJ17: =COUNTIFS(AU7:AU9,">=0.25",AU7:AU9,"<=25",AU7:AU9,"<=18") -> 0 | BL17: =AS7 -> 0 | BN17: 0 | BO17: 0 | BP17: 0
A18: 91 days - 40 years | B18: 994.5 | C18: 1193.4 | D18: 1404 | E18: 673.2 | F18: 826.2 | G18: 945 | H18: 459 | I18: 607.5 | J18: 648 | K18: 414.375 | L18: 514.8 | M18: 614.25 | AO18: =IF(AN18=1,400,0) -> 0 | AP18: 0 | AQ18: 0 | AS18: =AT17+1 -> 51 | AT18: 60 | AU18: 51 years - 60 years | AW18: 51 years - 60 years | AX18: 0.25 | AY18: 0.15 | AZ18: 0.075 | BB18: 91 days - 40 years | BC18: 0.25 | BD18: 0.2 | BE18: 0.15 | BG18: SI band | BH18: =LOOKUP(BH16,$AS$22:$AU$24) -> >8 & <= 15Lacs | BJ18: =IF(BJ17=COUNT(AT7:AT9),"Yes","No") -> Yes | BL18: =AS8 -> 0 | BN18: 0 | BO18: 0 | BP18: 0
A19: 41 years - 50 years | B19: 1752.66 | C19: 2103.192 | D19: 2358.72 | E19: 1186.416 | F19: 1456.056 | G19: 1587.6 | H19: 808.92 | I19: 1020.6 | J19: 967.68 | K19: 730.275 | L19: 810.81 | M19: 917.28 | AO19: =IF(AN19=1,400,0) -> 0 | AP19: 0 | AQ19: 0 | AS19: 61 | AT19: 65 | AU19: 61 years - 65 years | AW19: 61 years - 65 years | AX19: 0.3 | AY19: 0.2 | AZ19: 0.1 | BB19: 41 years - 50 years | BC19: 0.3 | BD19: 0.25 | BE19: 0.2 | BG19: Discount % | BH19: =IF(SUM(AT5:AT6)>1,INDEX($BB$17:$BE$22,MATCH($BH$17,$BB$17:$BB$22,0),MATCH($BH$18,$BB$17:$BE$17,0)),0) -> 0.2 | BJ19: =COUNT(AT7:AT9)*15% -> 0 | BL19: =AS9 -> 0 | BN19: 0 | BO19: 0 | BP19: 0
A20: 51 years - 60 years | B20: 3088.8 | C20: 3706.56 | D20: 4118.4 | E20: 2090.88 | F20: 2566.08 | G20: 2772 | H20: 1425.6 | I20: 1782 | J20: 1900.8 | K20: 1287 | L20: 1415.7 | M20: 1801.8 | AS20: 66 | AT20: 200 | AU20: Above 65 years | AW20: Above 65 years | AX20: 0.35 | AY20: 0.2 | AZ20: 0.1 | BB20: 51 years - 60 years | BC20: 0.35 | BD20: 0.3 | BE20: 0.25 | BG20: Total discount % | BH20: =MIN(40%,(BH19+BJ19)) -> 0.2 | BM20: Total | BN20: =SUM(BN15:BN19) -> 1970 | BO20: =SUM(BO15:BO19) -> 3940 | BP20: 5910
A21: 61 years - 65 years | B21: 6224.4 | C21: 7469.28 | D21: 8536.32 | E21: 4213.44 | F21: 5171.04 | G21: 5745.6 | H21: 2872.8 | I21: 3693.6 | J21: 4268.16 | K21: 2593.5 | L21: 3178.89 | M21: 3734.64 | AO21: 1 | AP21: 2 | AQ21: 3 | AS21: Sum Insured | AW21: Loading % | AX21: =INDEX($AW$15:$AZ$20,MATCH($BH$17,$AW$15:$AW$20,0),MATCH($BH$18,$AW$15:$AZ$15,0)) -> 0.05 | BB21: 61 years - 65 years | BC21: 0.35 | BD21: 0.35 | BE21: 0.25 | BG21: Discount amount | BH21: =BH20*$BA$11 -> 514.8 | BM21: Family floater disc | BN21: =IF(COUNT(AT5:AT6)>=1,Master!$BH$20*Master!BN20,0) -> 394 | BO21: =IF(COUNT(AT5:AT6)>=1,Master!$BH$20*Master!BO20,0) -> 788 | BP21: =IF(COUNT(AT5:AT6)>=1,Master!$BH$20*Master!BP20,0) -> 1182
A22: Above 65 years | B22: 10857.6 | C22: 13029.12 | D22: 15200.64 | E22: 7349.76 | F22: 9020.16 | G22: 10231.2 | H22: 5011.2 | I22: 6577.2 | J22: 7015.68 | K22: 4524 | L22: 5225.22 | M22: 6650.28 | AS22: 0 | AT22: 800000 | AU22: Up to 8 Lacs | AW22: Loading amount | AX22: =$AX$21*SUM(BA11:BD11) -> 102.96 | BB22: Above 65 years | BC22: 0.35 | BD22: 0.35 | BE22: 0.25 | BM22: Loading for WW | BN22: =BN20-BN21 -> 1576 | BO22: =BO20-BO21 -> 3152 | BP22: 4728
AS23: 800001 | AT23: 1500000 | AU23: >8 & <= 15Lacs
AS24: 1500001 | AT24: 10000000 | AU24: >15 Lacs | AW24: Ayush Loading | AX24: 0.1 | BB24: Wellness | BC24: 400 | BM24: Worlwide final | BN24: =IFERROR(IF(Sheet1!$H$3=Master!$BN$14,Master!$BN22,(IF(Sheet1!$H$3=Master!$BO$14,Master!$BO22,(IF(Sheet1!$H$3=Master!$BP$14,Master!$BP22,0))))),0) -> 1576
A25: Top Up | C25: Option III
A26: Top up Option III | AW26: Reload calc (Individual) | AX26: Loading % | AY26: Loading amount
A27: Deductible | B27: 500000 | E27: 750000 | H27: 1000000 | AW27: =AT5 -> 1 | AX27: =IFERROR(INDEX($AW$15:$AZ$20,MATCH(AV5,$AW$15:$AW$20,0),MATCH(AZ5,$AW$15:$AZ$15,0)),0) -> 0.05 | AY27: =AX27*SUM(BA5:BD5) -> 64.35
A28: Age Band/SI | B28: 1000000 | C28: 1500000 | D28: 2000000 | E28: 1000000 | F28: 1500000 | G28: 2000000 | H28: 1000000 | I28: 1500000 | J28: 2000000 | AW28: =AT6 -> 1 | AX28: 0.05 | AY28: =AX28*SUM(BA6:BD6) -> 64.35
A29: 91 days - 40 years | B29: 880.1203125 | C29: 1178.827812 | D29: 1536.21 | E29: 360.57 | F29: 487.83 | G29: 509.04 | H29: 295.445 | I29: 332.5625 | J29: 337.865 | AW29: =AT7 ->  | AX29: =IFERROR(INDEX($AW$15:$AZ$20,MATCH(AV7,$AW$15:$AW$20,0),MATCH(AZ7,$AW$15:$AZ$15,0)),0) -> 0 | AY29: 0
A30: 41 years - 50 years | B30: 1150.023875 | C30: 1554.730663 | D30: 1913.514662 | E30: 576.912 | F30: 780.528 | G30: 814.464 | H30: 352.712 | I30: 412.1 | J30: 420.584 | AW30: =AT8 ->  | AX30: =IFERROR(INDEX($AW$15:$AZ$20,MATCH(AV8,$AW$15:$AW$20,0),MATCH(AZ8,$AW$15:$AZ$15,0)),0) -> 0 | AY30: 0
A31: 51 years - 60 years | B31: 2065.349 | C31: 2440.867 | D31: 3004.144 | E31: 1019.898 | F31: 1379.862 | G31: 1439.856 | H31: 469.973 | I31: 574.9625 | J31: 589.961 | AW31: =AT9 ->  | AX31: 0 | AY31: 0
A32: 61 years - 65 years | B32: 5128.167687 | C32: 5270.05375 | D32: 6356.4956 | E32: 2153.118 | F32: 2913.042 | G32: 3039.696 | H32: 769.943 | I32: 991.5875 | J32: 1023.251
A33: Above 65 years | B33: 9528.76925 | C33: 10605.21061 | D33: 13052.56691 | E33: 3883.854 | F33: 5254.626 | G33: 5483.088 | H33: 1228.079 | I33: 1627.8875 | J33: 1685.003
A36: Super Top Up | C36: Option I
A37: Super top up Option I | AS37: Basic rates | BH37: World wide rates | BI37: Super Top up
A38: Deductible | B38: 200000 | H38: 300000 | N38: 400000 | T38: 500000 | Z38: 750000 | AF38: 1000000 | AS38: Options and Deductibles | AT38: Sum Insured | BI38: Sum Insured
A39: Age Band/SI | B39: 300000 | C39: 500000 | D39: 700000 | E39: 1000000 | F39: 1500000 | G39: 2000000 | H39: 300000 | I39: 500000 | J39: 700000 | K39: 1000000 | L39: 1500000 | M39: 2000000 | N39: 300000 | O39: 500000 | P39: 700000 | Q39: 1000000 | R39: 1500000 | S39: 2000000 | T39: 300000 | U39: 500000 | V39: 700000 | W39: 1000000 | X39: 1500000 | Y39: 2000000 | Z39: 300000 | AA39: 500000 | AB39: 700000 | AC39: 1000000 | AD39: 1500000 | AE39: 2000000 | AF39: 300000 | AG39: 500000 | AH39: 700000 | AI39: 1000000 | AJ39: 1500000 | AK39: 2000000 | AS39: Options and Deductibles | AT39: 50000 | AU39: 100000 | AV39: 150000 | AW39: 200000 | AX39: 300000 | AY39: 500000 | AZ39: 700000 | BA39: 1000000 | BB39: 1500000 | BC39: 2000000 | BD39: 3000000 | BE39: 5000000 | BF39: 10000000 | BH39: Options and Deductibles | BI39: 50000 | BJ39: 100000 | BK39: 150000 | BL39: 200000 | BM39: 300000 | BN39: 500000 | BO39: 700000 | BP39: 1000000 | BQ39: 1500000 | BR39: 2000000 | BS39: 3000000 | BT39: 5000000 | BU39: 10000000
A40: 91 days - 40 years | B40: 1591 | C40: 1909 | D40: 2246 | E40: 2387 | F40: 2948 | G40: 3276 | H40: 1077 | I40: 1322 | J40: 1512 | K40: 1771 | L40: 2621 | M40: 2903 | N40: 734 | O40: 972 | P40: 1037 | Q40: 1555 | R40: 2056 | S40: 2419 | T40: 663 | U40: 824 | V40: 983 | W40: 1287 | X40: 1724 | Y40: 2246 | Z40: 460 | AA40: 581 | AB40: 743 | AC40: 899 | AD40: 1125 | AE40: 1162 | AF40: 303 | AG40: 353 | AH40: 390 | AI40: 428 | AJ40: 494 | AK40: 503 | AS40: =A2&A5&B3 -> Top up Option I91 days - 40 years50000 | AT40: 746 | AU40: 1022 | AV40: 1381 | AW40: 1740 | AX40: 0 | AY40: 0 | AZ40: 0 | BA40: 0 | BB40: 0 | BC40: 0 | BD40: 0 | BE40: 0 | BF40: 0 | BH40: Super top up Option I91 days - 40 years200000 | BI40: 0 | BJ40: 0 | BK40: 0 | BL40: 0 | BM40: 887 | BN40: 1478 | BO40: 2069 | BP40: 2956 | BQ40: 4434 | BR40: 5912 | BS40: 0 | BT40: 0 | BU40: 0
A41: 41 years - 50 years | B41: 2804 | C41: 3365 | D41: 3774 | E41: 4009 | F41: 4717 | G41: 5241 | H41: 1898 | I41: 2329 | J41: 2540 | K41: 2975 | L41: 4193 | M41: 4644 | N41: 1294 | O41: 1633 | P41: 1548 | Q41: 2313 | R41: 3002 | S41: 3870 | T41: 1168 | U41: 1297 | V41: 1468 | W41: 1682 | X41: 2273 | Y41: 2798 | Z41: 597 | AA41: 801 | AB41: 1072 | AC41: 1283 | AD41: 1644 | AE41: 1704 | AF41: 333 | AG41: 418 | AH41: 469 | AI41: 530 | AJ41: 635 | AK41: 650 | AS41: =$A$2&A6&$B$3 -> Top up Option I41 years - 50 years50000 | AT41: 1314 | AU41: 1801 | AV41: 2434 | AW41: 3067 | AX41: 0 | AY41: 0 | AZ41: 0 | BA41: 0 | BB41: 0 | BC41: 0 | BD41: 0 | BE41: 0 | BF41: 0 | BH41: Super top up Option I41 years - 50 years200000 | BI41: 0 | BJ41: 0 | BK41: 0 | BL41: 0 | BM41: 1738 | BN41: 2897 | BO41: 4056 | BP41: 5794 | BQ41: 8690 | BR41: 11587 | BS41: 0 | BT41: 0 | BU41: 0
A42: 51 years - 60 years | B42: 4942 | C42: 5930 | D42: 6589 | E42: 7001 | F42: 8339 | G42: 9265 | H42: 3345 | I42: 4105 | J42: 4435 | K42: 5195 | L42: 7412 | M42: 8211 | N42: 2281 | O42: 2851 | P42: 3041 | Q42: 3849 | R42: 5170 | S42: 6842 | T42: 2059 | U42: 2265 | V42: 2883 | W42: 3020 | X42: 3569 | Y42: 4393 | Z42: 850 | AA42: 1205 | AB42: 1679 | AC42: 2069 | AD42: 2708 | AE42: 2815 | AF42: 389 | AG42: 537 | AH42: 631 | AI42: 738 | AJ42: 924 | AK42: 951 | AS42: =$A$2&A7&$B$3 -> Top up Option I51 years - 60 years50000 | AT42: 2317 | AU42: 3175 | AV42: 4290 | AW42: 5405 | AX42: 0 | AY42: 0 | AZ42: 0 | BA42: 0 | BB42: 0 | BC42: 0 | BD42: 0 | BE42: 0 | BF42: 0 | BH42: Super top up Option I51 years - 60 years200000 | BI42: 0 | BJ42: 0 | BK42: 0 | BL42: 0 | BM42: 3121 | BN42: 5202 | BO42: 7283 | BP42: 10405 | BQ42: 15607 | BR42: 20810 | BS42: 0 | BT42: 0 | BU42: 0
A43: 61 years - 65 years | B43: 9958 | C43: 11950 | D43: 13657 | E43: 14510 | F43: 17604 | G43: 19560 | H43: 6741 | I43: 8273 | J43: 9192 | K43: 10768 | L43: 15648 | M43: 17334 | N43: 4596 | O43: 5909 | P43: 6828 | Q43: 8864 | R43: 11497 | S43: 14445 | T43: 4149 | U43: 5086 | V43: 5975 | W43: 7498 | X43: 7706 | Y43: 9294 | Z43: 1485 | AA43: 2221 | AB43: 3202 | AC43: 4081 | AD43: 5430 | AE43: 5655 | AF43: 528 | AG43: 835 | AH43: 1045 | AI43: 1270 | AJ43: 1664 | AK43: 1720 | AS43: =$A$2&A8&$B$3 -> Top up Option I61 years - 65 years50000 | AT43: 4668 | AU43: 6397 | AV43: 8645 | AW43: 10893 | AX43: 0 | AY43: 0 | AZ43: 0 | BA43: 0 | BB43: 0 | BC43: 0 | BD43: 0 | BE43: 0 | BF43: 0 | BH43: Super top up Option I61 years - 65 years200000 | BI43: 0 | BJ43: 0 | BK43: 0 | BL43: 0 | BM43: 5616 | BN43: 9360 | BO43: 13105 | BP43: 18721 | BQ43: 28081 | BR43: 37442 | BS43: 0 | BT43: 0 | BU43: 0
A44: Above 65 years | B44: 17370 | C44: 20845 | D44: 24319 | E44: 25839 | F44: 31755 | G44: 35284 | H44: 11758 | I44: 14431 | J44: 16368 | K44: 19174 | L44: 28227 | M44: 31267 | N44: 8017 | O44: 10522 | P44: 11224 | Q44: 15784 | R44: 22147 | S44: 26056 | T44: 7238 | U44: 8360 | V44: 10639 | W44: 13933 | X44: 15506 | Y44: 19085 | Z44: 2442 | AA44: 3753 | AB44: 5500 | AC44: 7154 | AD44: 9587 | AE44: 9993 | AF44: 739 | AG44: 1285 | AH44: 1678 | AI44: 2084 | AJ44: 2793 | AK44: 2895 | AS44: =$A$2&A9&$B$3 -> Top up Option IAbove 65 years50000 | AT44: 8143 | AU44: 11159 | AV44: 15080 | AW44: 19001 | AX44: 0 | AY44: 0 | AZ44: 0 | BA44: 0 | BB44: 0 | BC44: 0 | BD44: 0 | BE44: 0 | BF44: 0 | BH44: Super top up Option IAbove 65 years200000 | BI44: 0 | BJ44: 0 | BK44: 0 | BL44: 0 | BM44: 9601 | BN44: 16001 | BO44: 22402 | BP44: 32003 | BQ44: 48004 | BR44: 64006 | BS44: 0 | BT44: 0 | BU44: 0
AS45: =$A$15&A18&$B$16 -> Top up Option II91 days - 40 years200000 | AT45: 0 | AU45: 0 | AV45: 0 | AW45: 0 | AX45: 995 | AY45: 1193 | AZ45: 1404 | BA45: 0 | BB45: 0 | BC45: 0 | BD45: 0 | BE45: 0 | BF45: 0 | BH45: Super top up Option I91 days - 40 years300000 | BI45: 0 | BJ45: 0 | BK45: 0 | BL45: 0 | BM45: 546 | BN45: 910 | BO45: 1273 | BP45: 1819 | BQ45: 2729 | BR45: 3638 | BS45: 0 | BT45: 0 | BU45: 0
AS46: =$A$15&A19&$B$16 -> Top up Option II41 years - 50 years200000 | AT46: 0 | AU46: 0 | AV46: 0 | AW46: 0 | AX46: 1753 | AY46: 2103 | AZ46: 2359 | BA46: 0 | BB46: 0 | BC46: 0 | BD46: 0 | BE46: 0 | BF46: 0 | BH46: Super top up Option I41 years - 50 years300000 | BI46: 0 | BJ46: 0 | BK46: 0 | BL46: 0 | BM46: 1070 | BN46: 1783 | BO46: 2496 | BP46: 3565 | BQ46: 5348 | BR46: 7131 | BS46: 0 | BT46: 0 | BU46: 0
A47: Super Top Up | C47: Option II | AS47: =$A$15&A20&$B$16 -> Top up Option II51 years - 60 years200000 | AT47: 0 | AU47: 0 | AV47: 0 | AW47: 0 | AX47: 3089 | AY47: 3707 | AZ47: 4118 | BA47: 0 | BB47: 0 | BC47: 0 | BD47: 0 | BE47: 0 | BF47: 0 | BH47: Super top up Option I51 years - 60 years300000 | BI47: 0 | BJ47: 0 | BK47: 0 | BL47: 0 | BM47: 1921 | BN47: 3201 | BO47: 4482 | BP47: 6403 | BQ47: 9604 | BR47: 12806 | BS47: 0 | BT47: 0 | BU47: 0
A48: Super top up Option II | AS48: =$A$15&A21&$B$16 -> Top up Option II61 years - 65 years200000 | AT48: 0 | AU48: 0 | AV48: 0 | AW48: 0 | AX48: 6224 | AY48: 7469 | AZ48: 8536 | BA48: 0 | BB48: 0 | BC48: 0 | BD48: 0 | BE48: 0 | BF48: 0 | BH48: Super top up Option I61 years - 65 years300000 | BI48: 0 | BJ48: 0 | BK48: 0 | BL48: 0 | BM48: 3456 | BN48: 5760 | BO48: 8064 | BP48: 11521 | BQ48: 17281 | BR48: 23041 | BS48: 0 | BT48: 0 | BU48: 0
A49: Deductible | B49: 1000000 | H49: 1500000 | N49: 2000000 | T49: 3000000 | Z49: 4000000 | AS49: =$A$15&A22&$B$16 -> Top up Option IIAbove 65 years200000 | AT49: 0 | AU49: 0 | AV49: 0 | AW49: 0 | AX49: 10858 | AY49: 13029 | AZ49: 15201 | BA49: 0 | BB49: 0 | BC49: 0 | BD49: 0 | BE49: 0 | BF49: 0 | BH49: Super top up Option IAbove 65 years300000 | BI49: 0 | BJ49: 0 | BK49: 0 | BL49: 0 | BM49: 5908 | BN49: 9847 | BO49: 13786 | BP49: 19694 | BQ49: 29541 | BR49: 39388 | BS49: 0 | BT49: 0 | BU49: 0
A50: Age Band/SI | B50: 1000000 | C50: 1500000 | D50: 2000000 | E50: 3000000 | F50: 5000000 | G50: 10000000 | H50: 1000000 | I50: 1500000 | J50: 2000000 | K50: 3000000 | L50: 5000000 | M50: 10000000 | N50: 1000000 | O50: 1500000 | P50: 2000000 | Q50: 3000000 | R50: 5000000 | S50: 10000000 | T50: 1000000 | U50: 1500000 | V50: 2000000 | W50: 3000000 | X50: 5000000 | Y50: 10000000 | Z50: 1000000 | AA50: 1500000 | AB50: 2000000 | AC50: 3000000 | AD50: 5000000 | AE50: 10000000 | AS50: =$A$15&A18&$E$16 -> Top up Option II91 days - 40 years300000 | AT50: 0 | AU50: 0 | AV50: 0 | AW50: 0 | AX50: 673 | AY50: 826 | AZ50: 945 | BA50: 0 | BB50: 0 | BC50: 0 | BD50: 0 | BE50: 0 | BF50: 0 | BH50: Super top up Option I91 days - 40 years400000 | BI50: 0 | BJ50: 0 | BK50: 0 | BL50: 0 | BM50: 409 | BN50: 682 | BO50: 955 | BP50: 1364 | BQ50: 2046 | BR50: 2729 | BS50: 0 | BT50: 0 | BU50: 0
A51: 91 days - 40 years | B51: 429 | C51: 496 | D51: 505 | E51: 534 | F51: 600 | G51: 752 | H51: 418 | I51: 456 | J51: 471 | K51: 479 | L51: 532 | M51: 654 | N51: 372 | O51: 452 | P51: 464 | Q51: 475 | R51: 509 | S51: 623 | T51: 362 | U51: 438 | V51: 456 | W51: 471 | X51: 486 | Y51: 562 | Z51: 271 | AA51: 305 | AB51: 317 | AC51: 341 | AD51: 362 | AE51: 448 | AS51: =$A$15&A19&$E$16 -> Top up Option II41 years - 50 years300000 | AT51: 0 | AU51: 0 | AV51: 0 | AW51: 0 | AX51: 1186 | AY51: 1456 | AZ51: 1588 | BA51: 0 | BB51: 0 | BC51: 0 | BD51: 0 | BE51: 0 | BF51: 0 | BH51: Super top up Option I41 years - 50 years400000 | BI51: 0 | BJ51: 0 | BK51: 0 | BL51: 0 | BM51: 802 | BN51: 1337 | BO51: 1872 | BP51: 2674 | BQ51: 4011 | BR51: 5348 | BS51: 0 | BT51: 0 | BU51: 0
A52: 41 years - 50 years | B52: 532 | C52: 638 | D52: 654 | E52: 699 | F52: 806 | G52: 1049 | H52: 514 | I52: 575 | J52: 599 | K52: 611 | L52: 696 | M52: 891 | N52: 441 | O52: 568 | P52: 587 | Q52: 605 | R52: 660 | S52: 842 | T52: 429 | U52: 550 | V52: 575 | W52: 599 | X52: 623 | Y52: 745 | Z52: 296 | AA52: 354 | AB52: 390 | AC52: 417 | AD52: 429 | AE52: 562 | AS52: =$A$15&A20&$E$16 -> Top up Option II51 years - 60 years300000 | AT52: 0 | AU52: 0 | AV52: 0 | AW52: 0 | AX52: 2091 | AY52: 2566 | AZ52: 2772 | BA52: 0 | BB52: 0 | BC52: 0 | BD52: 0 | BE52: 0 | BF52: 0 | BH52: Super top up Option I51 years - 60 years400000 | BI52: 0 | BJ52: 0 | BK52: 0 | BL52: 0 | BM52: 1441 | BN52: 2401 | BO52: 3362 | BP52: 4802 | BQ52: 7203 | BR52: 9604 | BS52: 0 | BT52: 0 | BU52: 0
A53: 51 years - 60 years | B53: 742 | C53: 930 | D53: 958 | E53: 1038 | F53: 1226 | G53: 1656 | H53: 710 | I53: 817 | J53: 860 | K53: 882 | L53: 1032 | M53: 1376 | N53: 581 | O53: 807 | P53: 839 | Q53: 871 | R53: 968 | S53: 1290 | T53: 559 | U53: 774 | V53: 817 | W53: 860 | X53: 903 | Y53: 1118 | Z53: 360 | AA53: 495 | AB53: 516 | AC53: 538 | AD53: 559 | AE53: 796 | AS53: =$A$15&A21&$E$16 -> Top up Option II61 years - 65 years300000 | AT53: 0 | AU53: 0 | AV53: 0 | AW53: 0 | AX53: 4213 | AY53: 5171 | AZ53: 5746 | BA53: 0 | BB53: 0 | BC53: 0 | BD53: 0 | BE53: 0 | BF53: 0 | BH53: Super top up Option I61 years - 65 years400000 | BI53: 0 | BJ53: 0 | BK53: 0 | BL53: 0 | BM53: 2592 | BN53: 4320 | BO53: 6048 | BP53: 8640 | BQ53: 12961 | BR53: 17281 | BS53: 0 | BT53: 0 | BU53: 0
A54: 61 years - 65 years | B54: 1279 | C54: 1676 | D54: 1733 | E54: 1903 | F54: 2300 | G54: 3208 | H54: 1211 | I54: 1438 | J54: 1529 | K54: 1574 | L54: 1892 | M54: 2618 | N54: 939 | O54: 1416 | P54: 1484 | Q54: 1552 | R54: 1756 | S54: 2436 | T54: 894 | U54: 1347 | V54: 1438 | W54: 1529 | X54: 1620 | Y54: 2073 | Z54: 531 | AA54: 758 | AB54: 803 | AC54: 848 | AD54: 894 | AE54: 1393 | AS54: =$A$15&A22&$E$16 -> Top up Option IIAbove 65 years300000 | AT54: 0 | AU54: 0 | AV54: 0 | AW54: 0 | AX54: 7350 | AY54: 9020 | AZ54: 10231 | BA54: 0 | BB54: 0 | BC54: 0 | BD54: 0 | BE54: 0 | BF54: 0 | BH54: Super top up Option IAbove 65 years400000 | BI54: 0 | BJ54: 0 | BK54: 0 | BL54: 0 | BM54: 4431 | BN54: 7385 | BO54: 10339 | BP54: 14771 | BQ54: 22156 | BR54: 29541 | BS54: 0 | BT54: 0 | BU54: 0
A55: Above 65 years | B55: 2100 | C55: 2816 | D55: 2918 | E55: 3226 | F55: 3942 | G55: 5579 | H55: 1977 | I55: 2387 | J55: 2550 | K55: 2632 | L55: 3205 | M55: 4515 | N55: 1486 | O55: 2346 | P55: 2468 | Q55: 2591 | R55: 2959 | S55: 4187 | T55: 1404 | U55: 2223 | V55: 2387 | W55: 2550 | X55: 2714 | Y55: 3532 | Z55: 750 | AA55: 1159 | AB55: 1241 | AC55: 1323 | AD55: 1404 | AE55: 2305 | AS55: =$A$15&A18&$H$16 -> Top up Option II91 days - 40 years400000 | AT55: 0 | AU55: 0 | AV55: 0 | AW55: 0 | AX55: 459 | AY55: 608 | AZ55: 648 | BA55: 0 | BB55: 0 | BC55: 0 | BD55: 0 | BE55: 0 | BF55: 0 | BH55: Super top up Option I91 days - 40 years500000 | BI55: 0 | BJ55: 0 | BK55: 0 | BL55: 0 | BM55: 296 | BN55: 493 | BO55: 690 | BP55: 985 | BQ55: 1478 | BR55: 1971 | BS55: 0 | BT55: 0 | BU55: 0
AS56: =$A$15&A19&$H$16 -> Top up Option II41 years - 50 years400000 | AT56: 0 | AU56: 0 | AV56: 0 | AW56: 0 | AX56: 809 | AY56: 1021 | AZ56: 968 | BA56: 0 | BB56: 0 | BC56: 0 | BD56: 0 | BE56: 0 | BF56: 0 | BH56: Super top up Option I41 years - 50 years500000 | BI56: 0 | BJ56: 0 | BK56: 0 | BL56: 0 | BM56: 579 | BN56: 966 | BO56: 1352 | BP56: 1931 | BQ56: 2897 | BR56: 3862 | BS56: 0 | BT56: 0 | BU56: 0
AS57: =$A$15&A20&$H$16 -> Top up Option II51 years - 60 years400000 | AT57: 0 | AU57: 0 | AV57: 0 | AW57: 0 | AX57: 1426 | AY57: 1782 | AZ57: 1901 | BA57: 0 | BB57: 0 | BC57: 0 | BD57: 0 | BE57: 0 | BF57: 0 | BH57: Super top up Option I51 years - 60 years500000 | BI57: 0 | BJ57: 0 | BK57: 0 | BL57: 0 | BM57: 1040 | BN57: 1734 | BO57: 2428 | BP57: 3468 | BQ57: 5202 | BR57: 6937 | BS57: 0 | BT57: 0 | BU57: 0
AS58: =$A$15&A21&$H$16 -> Top up Option II61 years - 65 years400000 | AT58: 0 | AU58: 0 | AV58: 0 | AW58: 0 | AX58: 2873 | AY58: 3694 | AZ58: 4268 | BA58: 0 | BB58: 0 | BC58: 0 | BD58: 0 | BE58: 0 | BF58: 0 | BH58: Super top up Option I61 years - 65 years500000 | BI58: 0 | BJ58: 0 | BK58: 0 | BL58: 0 | BM58: 1872 | BN58: 3120 | BO58: 4368 | BP58: 6240 | BQ58: 9360 | BR58: 12481 | BS58: 0 | BT58: 0 | BU58: 0
AS59: =$A$15&A22&$H$16 -> Top up Option IIAbove 65 years400000 | AT59: 0 | AU59: 0 | AV59: 0 | AW59: 0 | AX59: 5011 | AY59: 6577 | AZ59: 7016 | BA59: 0 | BB59: 0 | BC59: 0 | BD59: 0 | BE59: 0 | BF59: 0 | BH59: Super top up Option IAbove 65 years500000 | BI59: 0 | BJ59: 0 | BK59: 0 | BL59: 0 | BM59: 3200 | BN59: 5334 | BO59: 7467 | BP59: 10668 | BQ59: 16001 | BR59: 21335 | BS59: 0 | BT59: 0 | BU59: 0
AS60: =$A$15&A18&$K$16 -> Top up Option II91 days - 40 years500000 | AT60: 0 | AU60: 0 | AV60: 0 | AW60: 0 | AX60: 414 | AY60: 515 | AZ60: 614 | BA60: 0 | BB60: 0 | BC60: 0 | BD60: 0 | BE60: 0 | BF60: 0 | BH60: Super top up Option I91 days - 40 years750000 | BI60: 0 | BJ60: 0 | BK60: 0 | BL60: 0 | BM60: 191 | BN60: 252 | BO60: 312 | BP60: 403 | BQ60: 555 | BR60: 706 | BS60: 0 | BT60: 0 | BU60: 0
AS61: =$A$15&A19&$K$16 -> Top up Option II41 years - 50 years500000 | AT61: 0 | AU61: 0 | AV61: 0 | AW61: 0 | AX61: 730 | AY61: 811 | AZ61: 917 | BA61: 0 | BB61: 0 | BC61: 0 | BD61: 0 | BE61: 0 | BF61: 0 | BH61: Super top up Option I41 years - 50 years750000 | BI61: 0 | BJ61: 0 | BK61: 0 | BL61: 0 | BM61: 278 | BN61: 397 | BO61: 516 | BP61: 694 | BQ61: 991 | BR61: 1288 | BS61: 0 | BT61: 0 | BU61: 0
AS62: =$A$15&A20&$K$16 -> Top up Option II51 years - 60 years500000 | AT62: 0 | AU62: 0 | AV62: 0 | AW62: 0 | AX62: 1287 | AY62: 1416 | AZ62: 1802 | BA62: 0 | BB62: 0 | BC62: 0 | BD62: 0 | BE62: 0 | BF62: 0 | BH62: Super top up Option I51 years - 60 years750000 | BI62: 0 | BJ62: 0 | BK62: 0 | BL62: 0 | BM62: 420 | BN62: 634 | BO62: 847 | BP62: 1167 | BQ62: 1701 | BR62: 2234 | BS62: 0 | BT62: 0 | BU62: 0
AS63: =$A$15&A21&$K$16 -> Top up Option II61 years - 65 years500000 | AT63: 0 | AU63: 0 | AV63: 0 | AW63: 0 | AX63: 2594 | AY63: 3179 | AZ63: 3735 | BA63: 0 | BB63: 0 | BC63: 0 | BD63: 0 | BE63: 0 | BF63: 0 | BH63: Super top up Option I61 years - 65 years750000 | BI63: 0 | BJ63: 0 | BK63: 0 | BL63: 0 | BM63: 676 | BN63: 1060 | BO63: 1444 | BP63: 2020 | BQ63: 2980 | BR63: 3940 | BS63: 0 | BT63: 0 | BU63: 0
AS64: =$A$15&A22&$K$16 -> Top up Option IIAbove 65 years500000 | AT64: 0 | AU64: 0 | AV64: 0 | AW64: 0 | AX64: 4524 | AY64: 5225 | AZ64: 6650 | BA64: 0 | BB64: 0 | BC64: 0 | BD64: 0 | BE64: 0 | BF64: 0 | BH64: Super top up Option IAbove 65 years750000 | BI64: 0 | BJ64: 0 | BK64: 0 | BL64: 0 | BM64: 1085 | BN64: 1741 | BO64: 2398 | BP64: 3382 | BQ64: 5024 | BR64: 6665 | BS64: 0 | BT64: 0 | BU64: 0
AS65: =$A$26&A29&$B$27 -> Top up Option III91 days - 40 years500000 | AT65: 0 | AU65: 0 | AV65: 0 | AW65: 0 | AX65: 0 | AY65: 0 | AZ65: 0 | BA65: 880 | BB65: 1179 | BC65: 1536 | BD65: 0 | BE65: 0 | BF65: 0 | BH65: Super top up Option I91 days - 40 years1000000 | BI65: 0 | BJ65: 0 | BK65: 0 | BL65: 0 | BM65: 123 | BN65: 138 | BO65: 153 | BP65: 176 | BQ65: 214 | BR65: 252 | BS65: 0 | BT65: 0 | BU65: 0
AS66: =$A$26&A30&$B$27 -> Top up Option III41 years - 50 years500000 | AT66: 0 | AU66: 0 | AV66: 0 | AW66: 0 | AX66: 0 | AY66: 0 | AZ66: 0 | BA66: 1150 | BB66: 1555 | BC66: 1914 | BD66: 0 | BE66: 0 | BF66: 0 | BH66: Super top up Option I41 years - 50 years1000000 | BI66: 0 | BJ66: 0 | BK66: 0 | BL66: 0 | BM66: 145 | BN66: 174 | BO66: 204 | BP66: 249 | BQ66: 323 | BR66: 397 | BS66: 0 | BT66: 0 | BU66: 0
AS67: =$A$26&A31&$B$27 -> Top up Option III51 years - 60 years500000 | AT67: 0 | AU67: 0 | AV67: 0 | AW67: 0 | AX67: 0 | AY67: 0 | AZ67: 0 | BA67: 2065 | BB67: 2441 | BC67: 3004 | BD67: 0 | BE67: 0 | BF67: 0 | BH67: Super top up Option I51 years - 60 years1000000 | BI67: 0 | BJ67: 0 | BK67: 0 | BL67: 0 | BM67: 180 | BN67: 233 | BO67: 287 | BP67: 367 | BQ67: 500 | BR67: 634 | BS67: 0 | BT67: 0 | BU67: 0
AS68: =$A$26&A32&$B$27 -> Top up Option III61 years - 65 years500000 | AT68: 0 | AU68: 0 | AV68: 0 | AW68: 0 | AX68: 0 | AY68: 0 | AZ68: 0 | BA68: 5128 | BB68: 5270 | BC68: 6356 | BD68: 0 | BE68: 0 | BF68: 0 | BH68: Super top up Option I61 years - 65 years1000000 | BI68: 0 | BJ68: 0 | BK68: 0 | BL68: 0 | BM68: 244 | BN68: 340 | BO68: 436 | BP68: 580 | BQ68: 820 | BR68: 1060 | BS68: 0 | BT68: 0 | BU68: 0
AS69: =$A$26&A33&$B$27 -> Top up Option IIIAbove 65 years500000 | AT69: 0 | AU69: 0 | AV69: 0 | AW69: 0 | AX69: 0 | AY69: 0 | AZ69: 0 | BA69: 9529 | BB69: 10605 | BC69: 13053 | BD69: 0 | BE69: 0 | BF69: 0 | BH69: Super top up Option IAbove 65 years1000000 | BI69: 0 | BJ69: 0 | BK69: 0 | BL69: 0 | BM69: 346 | BN69: 510 | BO69: 674 | BP69: 921 | BQ69: 1331 | BR69: 1741 | BS69: 0 | BT69: 0 | BU69: 0
AS70: =$A$26&A29&$E$27 -> Top up Option III91 days - 40 years750000 | AT70: 0 | AU70: 0 | AV70: 0 | AW70: 0 | AX70: 0 | AY70: 0 | AZ70: 0 | BA70: 361 | BB70: 488 | BC70: 509 | BD70: 0 | BE70: 0 | BF70: 0 | BH70: Super top up Option II91 days - 40 years1000000 | BI70: 0 | BJ70: 0 | BK70: 0 | BL70: 0 | BM70: 0 | BN70: 0 | BO70: 0 | BP70: 176 | BQ70: 214 | BR70: 252 | BS70: 327 | BT70: 479 | BU70: 858
AS71: =$A$26&A30&$E$27 -> Top up Option III41 years - 50 years750000 | AT71: 0 | AU71: 0 | AV71: 0 | AW71: 0 | AX71: 0 | AY71: 0 | AZ71: 0 | BA71: 577 | BB71: 781 | BC71: 814 | BD71: 0 | BE71: 0 | BF71: 0 | BH71: Super top up Option II41 years - 50 years1000000 | BI71: 0 | BJ71: 0 | BK71: 0 | BL71: 0 | BM71: 0 | BN71: 0 | BO71: 0 | BP71: 249 | BQ71: 323 | BR71: 397 | BS71: 546 | BT71: 843 | BU71: 1586
AS72: =$A$26&A31&$E$27 -> Top up Option III51 years - 60 years750000 | AT72: 0 | AU72: 0 | AV72: 0 | AW72: 0 | AX72: 0 | AY72: 0 | AZ72: 0 | BA72: 1020 | BB72: 1380 | BC72: 1440 | BD72: 0 | BE72: 0 | BF72: 0 | BH72: Super top up Option II51 years - 60 years1000000 | BI72: 0 | BJ72: 0 | BK72: 0 | BL72: 0 | BM72: 0 | BN72: 0 | BO72: 0 | BP72: 367 | BQ72: 500 | BR72: 634 | BS72: 900 | BT72: 1434 | BU72: 2768
AS73: =$A$26&A32&$E$27 -> Top up Option III61 years - 65 years750000 | AT73: 0 | AU73: 0 | AV73: 0 | AW73: 0 | AX73: 0 | AY73: 0 | AZ73: 0 | BA73: 2153 | BB73: 2913 | BC73: 3040 | BD73: 0 | BE73: 0 | BF73: 0 | BH73: Super top up Option II61 years - 65 years1000000 | BI73: 0 | BJ73: 0 | BK73: 0 | BL73: 0 | BM73: 0 | BN73: 0 | BO73: 0 | BP73: 580 | BQ73: 820 | BR73: 1060 | BS73: 1540 | BT73: 2500 | BU73: 4900
AS74: =$A$26&A33&$E$27 -> Top up Option IIIAbove 65 years750000 | AT74: 0 | AU74: 0 | AV74: 0 | AW74: 0 | AX74: 0 | AY74: 0 | AZ74: 0 | BA74: 3884 | BB74: 5255 | BC74: 5483 | BD74: 0 | BE74: 0 | BF74: 0 | BH74: Super top up Option IIAbove 65 years1000000 | BI74: 0 | BJ74: 0 | BK74: 0 | BL74: 0 | BM74: 0 | BN74: 0 | BO74: 0 | BP74: 921 | BQ74: 1331 | BR74: 1741 | BS74: 2562 | BT74: 4203 | BU74: 8306
AS75: =$A$26&A29&$H$27 -> Top up Option III91 days - 40 years1000000 | AT75: 0 | AU75: 0 | AV75: 0 | AW75: 0 | AX75: 0 | AY75: 0 | AZ75: 0 | BA75: 295 | BB75: 333 | BC75: 338 | BD75: 0 | BE75: 0 | BF75: 0 | BH75: Super top up Option II91 days - 40 years1500000 | BI75: 0 | BJ75: 0 | BK75: 0 | BL75: 0 | BM75: 0 | BN75: 0 | BO75: 0 | BP75: 161 | BQ75: 191 | BR75: 221 | BS75: 282 | BT75: 403 | BU75: 706
AS76: =$A$26&A30&$H$27 -> Top up Option III41 years - 50 years1000000 | AT76: 0 | AU76: 0 | AV76: 0 | AW76: 0 | AX76: 0 | AY76: 0 | AZ76: 0 | BA76: 353 | BB76: 412 | BC76: 421 | BD76: 0 | BE76: 0 | BF76: 0 | BH76: Super top up Option II41 years - 50 years1500000 | BI76: 0 | BJ76: 0 | BK76: 0 | BL76: 0 | BM76: 0 | BN76: 0 | BO76: 0 | BP76: 219 | BQ76: 278 | BR76: 338 | BS76: 457 | BT76: 694 | BU76: 1288
AS77: =$A$26&A31&$H$27 -> Top up Option III51 years - 60 years1000000 | AT77: 0 | AU77: 0 | AV77: 0 | AW77: 0 | AX77: 0 | AY77: 0 | AZ77: 0 | BA77: 470 | BB77: 575 | BC77: 590 | BD77: 0 | BE77: 0 | BF77: 0 | BH77: Super top up Option II51 years - 60 years1500000 | BI77: 0 | BJ77: 0 | BK77: 0 | BL77: 0 | BM77: 0 | BN77: 0 | BO77: 0 | BP77: 313 | BQ77: 420 | BR77: 527 | BS77: 740 | BT77: 1167 | BU77: 2234
AS78: =$A$26&A32&$H$27 -> Top up Option III61 years - 65 years1000000 | AT78: 0 | AU78: 0 | AV78: 0 | AW78: 0 | AX78: 0 | AY78: 0 | AZ78: 0 | BA78: 770 | BB78: 992 | BC78: 1023 | BD78: 0 | BE78: 0 | BF78: 0 | BH78: Super top up Option II61 years - 65 years1500000 | BI78: 0 | BJ78: 0 | BK78: 0 | BL78: 0 | BM78: 0 | BN78: 0 | BO78: 0 | BP78: 484 | BQ78: 676 | BR78: 868 | BS78: 1252 | BT78: 2020 | BU78: 3940
AS79: =$A$26&A33&$H$27 -> Top up Option IIIAbove 65 years1000000 | AT79: 0 | AU79: 0 | AV79: 0 | AW79: 0 | AX79: 0 | AY79: 0 | AZ79: 0 | BA79: 1228 | BB79: 1628 | BC79: 1685 | BD79: 0 | BE79: 0 | BF79: 0 | BH79: Super top up Option IIAbove 65 years1500000 | BI79: 0 | BJ79: 0 | BK79: 0 | BL79: 0 | BM79: 0 | BN79: 0 | BO79: 0 | BP79: 756 | BQ79: 1085 | BR79: 1413 | BS79: 2069 | BT79: 3382 | BU79: 6665
AS80: =$A$37&A40&$B$38 -> Super top up Option I91 days - 40 years200000 | AT80: 0 | AU80: 0 | AV80: 0 | AW80: 0 | AX80: =B40 -> 1591 | AY80: =C40 -> 1909 | AZ80: 2246 | BA80: 2387 | BB80: 2948 | BC80: 3276 | BD80: 0 | BE80: 0 | BF80: 0 | BH80: Super top up Option II91 days - 40 years2000000 | BI80: 0 | BJ80: 0 | BK80: 0 | BL80: 0 | BM80: 0 | BN80: 0 | BO80: 0 | BP80: 145 | BQ80: 168 | BR80: 191 | BS80: 236 | BT80: 327 | BU80: 555
AS81: =$A$37&A41&$B$38 -> Super top up Option I41 years - 50 years200000 | AT81: 0 | AU81: 0 | AV81: 0 | AW81: 0 | AX81: =B41 -> 2804 | AY81: 3365 | AZ81: 3774 | BA81: 4009 | BB81: 4717 | BC81: 5241 | BD81: 0 | BE81: 0 | BF81: 0 | BH81: Super top up Option II41 years - 50 years2000000 | BI81: 0 | BJ81: 0 | BK81: 0 | BL81: 0 | BM81: 0 | BN81: 0 | BO81: 0 | BP81: 189 | BQ81: 234 | BR81: 278 | BS81: 367 | BT81: 546 | BU81: 991
AS82: =$A$37&A42&$B$38 -> Super top up Option I51 years - 60 years200000 | AT82: 0 | AU82: 0 | AV82: 0 | AW82: 0 | AX82: 4942 | AY82: 5930 | AZ82: 6589 | BA82: 7001 | BB82: 8339 | BC82: 9265 | BD82: 0 | BE82: 0 | BF82: 0 | BH82: Super top up Option II51 years - 60 years2000000 | BI82: 0 | BJ82: 0 | BK82: 0 | BL82: 0 | BM82: 0 | BN82: 0 | BO82: 0 | BP82: 260 | BQ82: 340 | BR82: 420 | BS82: 580 | BT82: 900 | BU82: 1701
AS83: =$A$37&A43&$B$38 -> Super top up Option I61 years - 65 years200000 | AT83: 0 | AU83: 0 | AV83: 0 | AW83: 0 | AX83: 9958 | AY83: 11950 | AZ83: 13657 | BA83: 14510 | BB83: 17604 | BC83: 19560 | BD83: 0 | BE83: 0 | BF83: 0 | BH83: Super top up Option II61 years - 65 years2000000 | BI83: 0 | BJ83: 0 | BK83: 0 | BL83: 0 | BM83: 0 | BN83: 0 | BO83: 0 | BP83: 388 | BQ83: 532 | BR83: 676 | BS83: 964 | BT83: 1540 | BU83: 2980
AS84: =$A$37&A44&$B$38 -> Super top up Option IAbove 65 years200000 | AT84: 0 | AU84: 0 | AV84: 0 | AW84: 0 | AX84: 17370 | AY84: 20845 | AZ84: 24319 | BA84: 25839 | BB84: 31755 | BC84: 35284 | BD84: 0 | BE84: 0 | BF84: 0 | BH84: Super top up Option IIAbove 65 years2000000 | BI84: 0 | BJ84: 0 | BK84: 0 | BL84: 0 | BM84: 0 | BN84: 0 | BO84: 0 | BP84: 592 | BQ84: 839 | BR84: 1085 | BS84: 1577 | BT84: 2562 | BU84: 5024
AS85: =$A$37&A40&$H$38 -> Super top up Option I91 days - 40 years300000 | AT85: 0 | AU85: 0 | AV85: 0 | AW85: 0 | AX85: =H40 -> 1077 | AY85: =I40 -> 1322 | AZ85: 1512 | BA85: 1771 | BB85: 2621 | BC85: 2903 | BD85: 0 | BE85: 0 | BF85: 0 | BH85: Super top up Option II91 days - 40 years3000000 | BI85: 0 | BJ85: 0 | BK85: 0 | BL85: 0 | BM85: 0 | BN85: 0 | BO85: 0 | BP85: 130 | BQ85: 145 | BR85: 161 | BS85: 191 | BT85: 252 | BU85: 403
AS86: =$A$37&A41&$H$38 -> Super top up Option I41 years - 50 years300000 | AT86: 0 | AU86: 0 | AV86: 0 | AW86: 0 | AX86: =H41 -> 1898 | AY86: 2329 | AZ86: 2540 | BA86: 2975 | BB86: 4193 | BC86: 4644 | BD86: 0 | BE86: 0 | BF86: 0 | BH86: Super top up Option II41 years - 50 years3000000 | BI86: 0 | BJ86: 0 | BK86: 0 | BL86: 0 | BM86: 0 | BN86: 0 | BO86: 0 | BP86: 159 | BQ86: 189 | BR86: 219 | BS86: 278 | BT86: 397 | BU86: 694
AS87: =$A$37&A42&$H$38 -> Super top up Option I51 years - 60 years300000 | AT87: 0 | AU87: 0 | AV87: 0 | AW87: 0 | AX87: 3345 | AY87: 4105 | AZ87: 4435 | BA87: 5195 | BB87: 7412 | BC87: 8211 | BD87: 0 | BE87: 0 | BF87: 0 | BH87: Super top up Option II51 years - 60 years3000000 | BI87: 0 | BJ87: 0 | BK87: 0 | BL87: 0 | BM87: 0 | BN87: 0 | BO87: 0 | BP87: 207 | BQ87: 260 | BR87: 313 | BS87: 420 | BT87: 634 | BU87: 1167
AS88: =$A$37&A43&$H$38 -> Super top up Option I61 years - 65 years300000 | AT88: 0 | AU88: 0 | AV88: 0 | AW88: 0 | AX88: 6741 | AY88: 8273 | AZ88: 9192 | BA88: 10768 | BB88: 15648 | BC88: 17334 | BD88: 0 | BE88: 0 | BF88: 0 | BH88: Super top up Option II61 years - 65 years3000000 | BI88: 0 | BJ88: 0 | BK88: 0 | BL88: 0 | BM88: 0 | BN88: 0 | BO88: 0 | BP88: 292 | BQ88: 388 | BR88: 484 | BS88: 676 | BT88: 1060 | BU88: 2020
AS89: =$A$37&A44&$H$38 -> Super top up Option IAbove 65 years300000 | AT89: 0 | AU89: 0 | AV89: 0 | AW89: 0 | AX89: 11758 | AY89: 14431 | AZ89: 16368 | BA89: 19174 | BB89: 28227 | BC89: 31267 | BD89: 0 | BE89: 0 | BF89: 0 | BH89: Super top up Option IIAbove 65 years3000000 | BI89: 0 | BJ89: 0 | BK89: 0 | BL89: 0 | BM89: 0 | BN89: 0 | BO89: 0 | BP89: 428 | BQ89: 592 | BR89: 756 | BS89: 1085 | BT89: 1741 | BU89: 3382
AS90: =$A$37&A40&$N$38 -> Super top up Option I91 days - 40 years400000 | AT90: 0 | AU90: 0 | AV90: 0 | AW90: 0 | AX90: =N40 -> 734 | AY90: =O40 -> 972 | AZ90: 1037 | BA90: 1555 | BB90: 2056 | BC90: 2419 | BD90: 0 | BE90: 0 | BF90: 0 | BH90: Super top up Option II91 days - 40 years4000000 | BI90: 0 | BJ90: 0 | BK90: 0 | BL90: 0 | BM90: 0 | BN90: 0 | BO90: 0 | BP90: 115 | BQ90: 123 | BR90: 130 | BS90: 145 | BT90: 176 | BU90: 252
AS91: =$A$37&A41&$N$38 -> Super top up Option I41 years - 50 years400000 | AT91: 0 | AU91: 0 | AV91: 0 | AW91: 0 | AX91: =N41 -> 1294 | AY91: 1633 | AZ91: 1548 | BA91: 2313 | BB91: 3002 | BC91: 3870 | BD91: 0 | BE91: 0 | BF91: 0 | BH91: Super top up Option II41 years - 50 years4000000 | BI91: 0 | BJ91: 0 | BK91: 0 | BL91: 0 | BM91: 0 | BN91: 0 | BO91: 0 | BP91: 130 | BQ91: 145 | BR91: 159 | BS91: 189 | BT91: 249 | BU91: 397
AS92: =$A$37&A42&$N$38 -> Super top up Option I51 years - 60 years400000 | AT92: 0 | AU92: 0 | AV92: 0 | AW92: 0 | AX92: 2281 | AY92: 2851 | AZ92: 3041 | BA92: 3849 | BB92: 5170 | BC92: 6842 | BD92: 0 | BE92: 0 | BF92: 0 | BH92: Super top up Option II51 years - 60 years4000000 | BI92: 0 | BJ92: 0 | BK92: 0 | BL92: 0 | BM92: 0 | BN92: 0 | BO92: 0 | BP92: 153 | BQ92: 180 | BR92: 207 | BS92: 260 | BT92: 367 | BU92: 634
AS93: =$A$37&A43&$N$38 -> Super top up Option I61 years - 65 years400000 | AT93: 0 | AU93: 0 | AV93: 0 | AW93: 0 | AX93: 4596 | AY93: 5909 | AZ93: 6828 | BA93: 8864 | BB93: 11497 | BC93: 14445 | BD93: 0 | BE93: 0 | BF93: 0 | BH93: Super top up Option II61 years - 65 years4000000 | BI93: 0 | BJ93: 0 | BK93: 0 | BL93: 0 | BM93: 0 | BN93: 0 | BO93: 0 | BP93: 196 | BQ93: 244 | BR93: 292 | BS93: 388 | BT93: 580 | BU93: 1060
AS94: =$A$37&A44&$N$38 -> Super top up Option IAbove 65 years400000 | AT94: 0 | AU94: 0 | AV94: 0 | AW94: 0 | AX94: 8017 | AY94: 10522 | AZ94: 11224 | BA94: 15784 | BB94: 22147 | BC94: 26056 | BD94: 0 | BE94: 0 | BF94: 0 | BH94: Super top up Option IIAbove 65 years4000000 | BI94: 0 | BJ94: 0 | BK94: 0 | BL94: 0 | BM94: 0 | BN94: 0 | BO94: 0 | BP94: 264 | BQ94: 346 | BR94: 428 | BS94: 592 | BT94: 921 | BU94: 1741
AS95: =$A$37&A40&$T$38 -> Super top up Option I91 days - 40 years500000 | AT95: 0 | AU95: 0 | AV95: 0 | AW95: 0 | AX95: =T40 -> 663 | AY95: =U40 -> 824 | AZ95: 983 | BA95: 1287 | BB95: 1724 | BC95: 2246 | BD95: 0 | BE95: 0 | BF95: 0
AS96: =$A$37&A41&$T$38 -> Super top up Option I41 years - 50 years500000 | AT96: 0 | AU96: 0 | AV96: 0 | AW96: 0 | AX96: =T41 -> 1168 | AY96: 1297 | AZ96: 1468 | BA96: 1682 | BB96: 2273 | BC96: 2798 | BD96: 0 | BE96: 0 | BF96: 0
AS97: =$A$37&A42&$T$38 -> Super top up Option I51 years - 60 years500000 | AT97: 0 | AU97: 0 | AV97: 0 | AW97: 0 | AX97: 2059 | AY97: 2265 | AZ97: 2883 | BA97: 3020 | BB97: 3569 | BC97: 4393 | BD97: 0 | BE97: 0 | BF97: 0
AS98: =$A$37&A43&$T$38 -> Super top up Option I61 years - 65 years500000 | AT98: 0 | AU98: 0 | AV98: 0 | AW98: 0 | AX98: 4149 | AY98: 5086 | AZ98: 5975 | BA98: 7498 | BB98: 7706 | BC98: 9294 | BD98: 0 | BE98: 0 | BF98: 0
AS99: =$A$37&A44&$T$38 -> Super top up Option IAbove 65 years500000 | AT99: 0 | AU99: 0 | AV99: 0 | AW99: 0 | AX99: 7238 | AY99: 8360 | AZ99: 10639 | BA99: 13933 | BB99: 15506 | BC99: 19085 | BD99: 0 | BE99: 0 | BF99: 0
AS100: =$A$37&A40&$Z$38 -> Super top up Option I91 days - 40 years750000 | AT100: 0 | AU100: 0 | AV100: 0 | AW100: 0 | AX100: =Z40 -> 460 | AY100: =AA40 -> 581 | AZ100: 743 | BA100: 899 | BB100: 1125 | BC100: 1162 | BD100: 0 | BE100: 0 | BF100: 0
AS101: =$A$37&A41&$Z$38 -> Super top up Option I41 years - 50 years750000 | AT101: 0 | AU101: 0 | AV101: 0 | AW101: 0 | AX101: =Z41 -> 597 | AY101: 801 | AZ101: 1072 | BA101: 1283 | BB101: 1644 | BC101: 1704 | BD101: 0 | BE101: 0 | BF101: 0
AS102: =$A$37&A42&$Z$38 -> Super top up Option I51 years - 60 years750000 | AT102: 0 | AU102: 0 | AV102: 0 | AW102: 0 | AX102: 850 | AY102: 1205 | AZ102: 1679 | BA102: 2069 | BB102: 2708 | BC102: 2815 | BD102: 0 | BE102: 0 | BF102: 0
AS103: =$A$37&A43&$Z$38 -> Super top up Option I61 years - 65 years750000 | AT103: 0 | AU103: 0 | AV103: 0 | AW103: 0 | AX103: 1485 | AY103: 2221 | AZ103: 3202 | BA103: 4081 | BB103: 5430 | BC103: 5655 | BD103: 0 | BE103: 0 | BF103: 0
AS104: =$A$37&A44&$Z$38 -> Super top up Option IAbove 65 years750000 | AT104: 0 | AU104: 0 | AV104: 0 | AW104: 0 | AX104: 2442 | AY104: 3753 | AZ104: 5500 | BA104: 7154 | BB104: 9587 | BC104: 9993 | BD104: 0 | BE104: 0 | BF104: 0
AS105: =$A$37&A40&$AF$38 -> Super top up Option I91 days - 40 years1000000 | AT105: 0 | AU105: 0 | AV105: 0 | AW105: 0 | AX105: =AF40 -> 303 | AY105: =AG40 -> 353 | AZ105: 390 | BA105: 428 | BB105: 494 | BC105: 503 | BD105: 0 | BE105: 0 | BF105: 0
AS106: =$A$37&A41&$AF$38 -> Super top up Option I41 years - 50 years1000000 | AT106: 0 | AU106: 0 | AV106: 0 | AW106: 0 | AX106: =AF41 -> 333 | AY106: 418 | AZ106: 469 | BA106: 530 | BB106: 635 | BC106: 650 | BD106: 0 | BE106: 0 | BF106: 0
AS107: =$A$37&A42&$AF$38 -> Super top up Option I51 years - 60 years1000000 | AT107: 0 | AU107: 0 | AV107: 0 | AW107: 0 | AX107: 389 | AY107: 537 | AZ107: 631 | BA107: 738 | BB107: 924 | BC107: 951 | BD107: 0 | BE107: 0 | BF107: 0
AS108: =$A$37&A43&$AF$38 -> Super top up Option I61 years - 65 years1000000 | AT108: 0 | AU108: 0 | AV108: 0 | AW108: 0 | AX108: 528 | AY108: 835 | AZ108: 1045 | BA108: 1270 | BB108: 1664 | BC108: 1720 | BD108: 0 | BE108: 0 | BF108: 0
AS109: =$A$37&A44&$AF$38 -> Super top up Option IAbove 65 years1000000 | AT109: 0 | AU109: 0 | AV109: 0 | AW109: 0 | AX109: 739 | AY109: 1285 | AZ109: 1678 | BA109: 2084 | BB109: 2793 | BC109: 2895 | BD109: 0 | BE109: 0 | BF109: 0
AS110: =$A$48&A51&$B$49 -> Super top up Option II91 days - 40 years1000000 | AT110: 0 | AU110: 0 | AV110: 0 | AW110: 0 | AX110: 0 | AY110: 0 | AZ110: 0 | BA110: =B51 -> 429 | BB110: =C51 -> 496 | BC110: 505 | BD110: 534 | BE110: 600 | BF110: 752
AS111: =$A$48&A52&$B$49 -> Super top up Option II41 years - 50 years1000000 | AT111: 0 | AU111: 0 | AV111: 0 | AW111: 0 | AX111: 0 | AY111: 0 | AZ111: 0 | BA111: =B52 -> 532 | BB111: 638 | BC111: 654 | BD111: 699 | BE111: 806 | BF111: 1049
AS112: =$A$48&A53&$B$49 -> Super top up Option II51 years - 60 years1000000 | AT112: 0 | AU112: 0 | AV112: 0 | AW112: 0 | AX112: 0 | AY112: 0 | AZ112: 0 | BA112: 742 | BB112: 930 | BC112: 958 | BD112: 1038 | BE112: 1226 | BF112: 1656
AS113: =$A$48&A54&$B$49 -> Super top up Option II61 years - 65 years1000000 | AT113: 0 | AU113: 0 | AV113: 0 | AW113: 0 | AX113: 0 | AY113: 0 | AZ113: 0 | BA113: 1279 | BB113: 1676 | BC113: 1733 | BD113: 1903 | BE113: 2300 | BF113: 3208
AS114: =$A$48&A55&$B$49 -> Super top up Option IIAbove 65 years1000000 | AT114: 0 | AU114: 0 | AV114: 0 | AW114: 0 | AX114: 0 | AY114: 0 | AZ114: 0 | BA114: 2100 | BB114: 2816 | BC114: 2918 | BD114: 3226 | BE114: 3942 | BF114: 5579
AS115: =$A$48&A51&$H$49 -> Super top up Option II91 days - 40 years1500000 | AT115: 0 | AU115: 0 | AV115: 0 | AW115: 0 | AX115: 0 | AY115: 0 | AZ115: 0 | BA115: =H51 -> 418 | BB115: =I51 -> 456 | BC115: 471 | BD115: 479 | BE115: 532 | BF115: 654
AS116: =$A$48&A52&$H$49 -> Super top up Option II41 years - 50 years1500000 | AT116: 0 | AU116: 0 | AV116: 0 | AW116: 0 | AX116: 0 | AY116: 0 | AZ116: 0 | BA116: =H52 -> 514 | BB116: 575 | BC116: 599 | BD116: 611 | BE116: 696 | BF116: 891
AS117: =$A$48&A53&$H$49 -> Super top up Option II51 years - 60 years1500000 | AT117: 0 | AU117: 0 | AV117: 0 | AW117: 0 | AX117: 0 | AY117: 0 | AZ117: 0 | BA117: 710 | BB117: 817 | BC117: 860 | BD117: 882 | BE117: 1032 | BF117: 1376
AS118: =$A$48&A54&$H$49 -> Super top up Option II61 years - 65 years1500000 | AT118: 0 | AU118: 0 | AV118: 0 | AW118: 0 | AX118: 0 | AY118: 0 | AZ118: 0 | BA118: 1211 | BB118: 1438 | BC118: 1529 | BD118: 1574 | BE118: 1892 | BF118: 2618
AS119: =$A$48&A55&$H$49 -> Super top up Option IIAbove 65 years1500000 | AT119: 0 | AU119: 0 | AV119: 0 | AW119: 0 | AX119: 0 | AY119: 0 | AZ119: 0 | BA119: 1977 | BB119: 2387 | BC119: 2550 | BD119: 2632 | BE119: 3205 | BF119: 4515
AS120: =$A$48&A51&$N$49 -> Super top up Option II91 days - 40 years2000000 | AT120: 0 | AU120: 0 | AV120: 0 | AW120: 0 | AX120: 0 | AY120: 0 | AZ120: 0 | BA120: =N51 -> 372 | BB120: =O51 -> 452 | BC120: 464 | BD120: 475 | BE120: 509 | BF120: 623
AS121: =$A$48&A52&$N$49 -> Super top up Option II41 years - 50 years2000000 | AT121: 0 | AU121: 0 | AV121: 0 | AW121: 0 | AX121: 0 | AY121: 0 | AZ121: 0 | BA121: =N52 -> 441 | BB121: 568 | BC121: 587 | BD121: 605 | BE121: 660 | BF121: 842
AS122: =$A$48&A53&$N$49 -> Super top up Option II51 years - 60 years2000000 | AT122: 0 | AU122: 0 | AV122: 0 | AW122: 0 | AX122: 0 | AY122: 0 | AZ122: 0 | BA122: 581 | BB122: 807 | BC122: 839 | BD122: 871 | BE122: 968 | BF122: 1290
AS123: =$A$48&A54&$N$49 -> Super top up Option II61 years - 65 years2000000 | AT123: 0 | AU123: 0 | AV123: 0 | AW123: 0 | AX123: 0 | AY123: 0 | AZ123: 0 | BA123: 939 | BB123: 1416 | BC123: 1484 | BD123: 1552 | BE123: 1756 | BF123: 2436
AS124: =$A$48&A55&$N$49 -> Super top up Option IIAbove 65 years2000000 | AT124: 0 | AU124: 0 | AV124: 0 | AW124: 0 | AX124: 0 | AY124: 0 | AZ124: 0 | BA124: 1486 | BB124: 2346 | BC124: 2468 | BD124: 2591 | BE124: 2959 | BF124: 4187
AS125: =$A$48&A51&$T$49 -> Super top up Option II91 days - 40 years3000000 | AT125: 0 | AU125: 0 | AV125: 0 | AW125: 0 | AX125: 0 | AY125: 0 | AZ125: 0 | BA125: =T51 -> 362 | BB125: =U51 -> 438 | BC125: 456 | BD125: 471 | BE125: 486 | BF125: 562
AS126: =$A$48&A52&$T$49 -> Super top up Option II41 years - 50 years3000000 | AT126: 0 | AU126: 0 | AV126: 0 | AW126: 0 | AX126: 0 | AY126: 0 | AZ126: 0 | BA126: =T52 -> 429 | BB126: 550 | BC126: 575 | BD126: 599 | BE126: 623 | BF126: 745
AS127: =$A$48&A53&$T$49 -> Super top up Option II51 years - 60 years3000000 | AT127: 0 | AU127: 0 | AV127: 0 | AW127: 0 | AX127: 0 | AY127: 0 | AZ127: 0 | BA127: 559 | BB127: 774 | BC127: 817 | BD127: 860 | BE127: 903 | BF127: 1118
AS128: =$A$48&A54&$T$49 -> Super top up Option II61 years - 65 years3000000 | AT128: 0 | AU128: 0 | AV128: 0 | AW128: 0 | AX128: 0 | AY128: 0 | AZ128: 0 | BA128: 894 | BB128: 1347 | BC128: 1438 | BD128: 1529 | BE128: 1620 | BF128: 2073
AS129: =$A$48&A55&$T$49 -> Super top up Option IIAbove 65 years3000000 | AT129: 0 | AU129: 0 | AV129: 0 | AW129: 0 | AX129: 0 | AY129: 0 | AZ129: 0 | BA129: 1404 | BB129: 2223 | BC129: 2387 | BD129: 2550 | BE129: 2714 | BF129: 3532
AS130: =$A$48&A51&$Z$49 -> Super top up Option II91 days - 40 years4000000 | AT130: 0 | AU130: 0 | AV130: 0 | AW130: 0 | AX130: 0 | AY130: 0 | AZ130: 0 | BA130: =Z51 -> 271 | BB130: =AA51 -> 305 | BC130: 317 | BD130: 341 | BE130: 362 | BF130: 448
AS131: =$A$48&A52&$Z$49 -> Super top up Option II41 years - 50 years4000000 | AT131: 0 | AU131: 0 | AV131: 0 | AW131: 0 | AX131: 0 | AY131: 0 | AZ131: 0 | BA131: =Z52 -> 296 | BB131: 354 | BC131: 390 | BD131: 417 | BE131: 429 | BF131: 562
AS132: =$A$48&A53&$Z$49 -> Super top up Option II51 years - 60 years4000000 | AT132: 0 | AU132: 0 | AV132: 0 | AW132: 0 | AX132: 0 | AY132: 0 | AZ132: 0 | BA132: 360 | BB132: 495 | BC132: 516 | BD132: 538 | BE132: 559 | BF132: 796
AS133: =$A$48&A54&$Z$49 -> Super top up Option II61 years - 65 years4000000 | AT133: 0 | AU133: 0 | AV133: 0 | AW133: 0 | AX133: 0 | AY133: 0 | AZ133: 0 | BA133: 531 | BB133: 758 | BC133: 803 | BD133: 848 | BE133: 894 | BF133: 1393
AS134: =$A$48&A55&$Z$49 -> Super top up Option IIAbove 65 years4000000 | AT134: 0 | AU134: 0 | AV134: 0 | AW134: 0 | AX134: 0 | AY134: 0 | AZ134: 0 | BA134: 750 | BB134: 1159 | BC134: 1241 | BD134: 1323 | BE134: 1404 | BF134: 2305
